Cogmind - Beta 14 *** ADVENTURER MODE // 2025.03.20 @ 18:22:14 // Winter2019/RPGLIKE Player: Gallgagger Result: Establishing 0b11! Performance ------------- Evolutions (9) 4500 Regions Visited (35) 7000 Robots Destroyed (1258) 6290 Value Destroyed (68578) 68578 Prototype IDs (316) 6320 Alien Tech Used (8) 1600 Bonus (88083) 88083 TOTAL SCORE: 182371 Bonus ------- Triggered High Security 500 High Alert Combat Kills 28486 Follower Combat Kills 3748 Entered Garrisons 800 Aligned with FarCom 300 Met Zhirov 300 MAIN.C Attacked Warlord 500 Warlord Defense Kills 33410 Scanned by Researcher 1000 Pursued by Intercept 500 Destroyed MAIN.C Guards 500 Met MAIN.C 5000 Destroyed MAIN.C Shell 5000 Destroyed MAIN.C 10000 Win 3000 Friendly Fire -4961 Cogmind --------- Core Integrity 1400/1400 Matter 300/300 Energy 748/750 System Corruption 0% Temperature Cool (2) Movement Hovering (42) Location 0b11 Command Parts ------- > --- POWER (3) -------- Micro Antimatter Reactor Vortex Chain Reactor > --- PROPULSION (4) --- Cooled Antigrav System Antigrav Array Cooled Linear Gravjet > --- UTILITY (14) ----- Gravity Neutralizer Experimental Signal Interpreter Makeshift Salvage Targeting Computer Advanced Target Analyzer Experimental Core Analyzer Experimental Core Analyzer Experimental Core Analyzer Experimental Armor Integrity Analyzer Advanced Weapon Cycler Experimental Powered Armor Experimental Focal Shield Thermal Barrier Advanced System Restoration Module Long-range Tractor Beam > --- WEAPON (4) ------- 8R-AWN's Boregun 8R-AWN's Boregun Advanced Remote Datajack > --- INVENTORY (6) ---- Spacefold Activator Hypervelocity EM Gauss Rifle Tachyon Dispersion Ray Tachyon Dispersion Ray CPS Tube (1) Peak State ------------ > --- POWER ------------ Micro Antimatter Reactor Vortex Chain Reactor > --- PROPULSION ------- Antigrav Array Cooled Linear Gravjet Cooled Linear Gravjet > --- UTILITY ---------- Gravity Neutralizer Experimental Signal Interpreter Makeshift Salvage Targeting Computer Advanced Target Analyzer Experimental Core Analyzer Experimental Core Analyzer Experimental Core Analyzer Experimental Armor Integrity Analyzer Advanced Weapon Cycler Centrium Light Armor Plating Centrium Medium Armor Plating Experimental Focal Shield Thermal Barrier Long-range Tractor Beam > --- WEAPON ----------- Hypervelocity EM Gauss Rifle 8R-AWN's Boregun 8R-AWN's Boregun Advanced Remote Datajack > --- INVENTORY -------- Spacefold Activator Tachyon Dispersion Ray Tachyon Dispersion Ray CPS Tube CPS Tube [Rating: 219] Favorites ----------- Power Vortex Chain Reactor Engine Makeshift Power Source Power Core Neutrino Core Reactor Vortex Chain Reactor Propulsion Cooled Linear Gravjet Treads Light Treads Leg Advanced Myomer Leg Wheel Compact Wheel Hover Unit Cooled Linear Gravjet Flight Unit Cesium-ion Thruster Utility Experimental Core Analyzer Device Gravity Neutralizer Processor Experimental Core Analyzer Hackware Authchip [R/Combat] Protection Centrium Medium Armor Plating Artifact Spacefold Activator Weapon 8R-AWN's Boregun Energy Gun Tachyon Dispersion Ray Energy Cannon Null Cannon Ballistic Gun 8R-AWN's Boregun Launcher Heavy Rocket Launcher Special Weapon Advanced Remote Datajack Slashing Weapon Axe Special Melee Weapon Improved Datajack Build | -11 -10 -10 -9 -9 -9 -8 -8 -8 -8 -8 -8 -8 -8 -8 -7 -7 -7 -7 -5 -5 -5 -5 -4 -4 -4 -4 -4 -3 -3 -3 -2 -2 -2 -1 -1 ------- Run | Yrd Mat Min Mat Min Exi Min Mat Gar Mat Gar Mat Gar Mat Gar Fac Sto Rec Scr Fac Upp Upp Zhi Pro Fac Upp Upp War Pro Res Tes Res Qua Sec Acc Com Slots Evolved 21 | 4 2 2 1 1 1 . 1 . . . . . . 1 . . 1 . . 1 . . . 3 . . 1 . . . . 1 . . 1 Power 2 | 1 . . . . . . . . . . . . . . . . . . . . . . . 1 . . . . . . . . . . . Propulsion 3 | 1 1 . . . . . . . . . . . . . . . . . . . . . . 1 . . . . . . . . . . . Utility 13 | 1 1 2 1 . 1 . 1 . . . . . . 1 . . 1 . . 1 . . . 1 . . 1 . . . . . . . 1 Weapon 3 | 1 . . . 1 . . . . . . . . . . . . . . . . . . . . . . . . . . . 1 . . . Parts Attached 489 | 7 5 3 16 1 45 . 5 . 2 . 2 . . 14 . 5 7 14 17 1 1 5 5 9 1 2 24 . 9 25 . 13 51 . 200 Power 31 | 2 . . 5 . 7 . . . . . . . . 1 . . . 3 1 . . 3 . 7 . . 1 . 1 . . . . . . Engine 13 | 2 . . 2 . 4 . . . . . . . . . . . . 1 . . . 1 . 3 . . . . . . . . . . . Core 11 | . . . 3 . 3 . . . . . . . . 1 . . . 1 1 . . 1 . 1 . . . . . . . . . . . Reactor 7 | . . . . . . . . . . . . . . . . . . 1 . . . 1 . 3 . . 1 . 1 . . . . . . Propulsion 56 | 2 3 1 1 . 9 . 2 . 1 . . . . 11 . 2 5 . 2 . . . . 1 . . 2 . . 2 . 4 1 . 7 Treads 3 | . . . . . 3 . . . . . . . . . . . . . . . . . . . . . . . . . . . . . . Leg 2 | . . . . . 2 . . . . . . . . . . . . . . . . . . . . . . . . . . . . . . Wheel 2 | 2 . . . . . . . . . . . . . . . . . . . . . . . . . . . . . . . . . . . Hover 30 | . . . . . . . . . . . . . . 4 . 2 5 . 2 . . . . 1 . . 2 . . 2 . 4 1 . 7 Flight 19 | . 3 1 1 . 4 . 2 . 1 . . . . 7 . . . . . . . . . . . . . . . . . . . . . Utility 134 | 1 2 2 2 . 23 . 3 . . . 2 . . 2 . . 1 2 11 1 1 . 3 1 1 2 21 . 8 7 . 4 15 . 19 Device 76 | 1 . 2 . . 12 . . . . . 1 . . . . . 1 1 7 1 1 . 2 1 . 1 13 . 6 4 . 2 10 . 10 Storage . | . . . . . . . . . . . . . . . . . . . . . . . . . . . . . . . . . . . . Processor 15 | . . . . . 2 . 1 . . . . . . . . . . 1 1 . . . 1 . 1 1 4 . 2 . . . . . 1 Hackware 3 | . . . . . . . . . . . . . . . . . . . 3 . . . . . . . . . . . . . . . . Protection 39 | . 2 . 2 . 9 . 2 . . . 1 . . 2 . . . . . . . . . . . . 4 . . 3 . 2 4 . 8 Artifact 1 | . . . . . . . . . . . . . . . . . . . . . . . . . . . . . . . . . 1 . . Weapon 268 | 2 . . 8 1 6 . . . 1 . . . . . . 3 1 9 3 . . 2 2 . . . . . . 16 . 5 35 . 174 Energy Gun 112 | . . . . . . . . . . . . . . . . . . . . . . . . . . . . . . 6 . 3 16 . 87 Energy Cannon 1 | . . . . . . . . . . . . . . . . . . . . . . . . . . . . . . 1 . . . . . Ballistic Gun 118 | 2 . . 5 1 4 . . . . . . . . . . 2 . . . . . 2 . . . . . . . 8 . 1 15 . 78 Ballistic Cannon . | . . . . . . . . . . . . . . . . . . . . . . . . . . . . . . . . . . . . Launcher 4 | . . . . . 2 . . . . . . . . . . 1 . . . . . . . . . . . . . . . . . . 1 Special Weapon 26 | . . . . . . . . . . . . . . . . . . 8 3 . . . 1 . . . . . . 1 . 1 4 . 8 Impact Weapon . | . . . . . . . . . . . . . . . . . . . . . . . . . . . . . . . . . . . . Slashing Weapon 3 | . . . 3 . . . . . . . . . . . . . . . . . . . . . . . . . . . . . . . . Piercing Weapon . | . . . . . . . . . . . . . . . . . . . . . . . . . . . . . . . . . . . . Special Melee Weapon 4 | . . . . . . . . . 1 . . . . . . . 1 1 . . . . 1 . . . . . . . . . . . . Unidentified Prototypes 50 | . . . 2 . 9 . 1 . . . . . . . . 2 1 3 3 . . 2 1 . . . 9 . 3 5 . 1 7 . 1 Corrupted Parts 2 | . . . . . 1 . . . . . . . . . . . . . 1 . . . . . . . . . . . . . . . . System Corruption 4 | . . . . . 1 . . . . . . . . . . . . . 3 . . . . . . . . . . . . . . . . Parts Lost 4 | . . . . . . . . . . . . . . . . . . . . . . . . . . . 2 . . . . . . 1 1 Power . | . . . . . . . . . . . . . . . . . . . . . . . . . . . . . . . . . . . . Propulsion . | . . . . . . . . . . . . . . . . . . . . . . . . . . . . . . . . . . . . Utility 4 | . . . . . . . . . . . . . . . . . . . . . . . . . . . 2 . . . . . . 1 1 Weapon . | . . . . . . . . . . . . . . . . . . . . . . . . . . . . . . . . . . . . Highest Loss Streak 1 | . . . . . . . . . . . . . . . . . . . . . . . . . . . 1 . . . . . . 1 1 To Critical Strikes . | . . . . . . . . . . . . . . . . . . . . . . . . . . . . . . . . . . . . Average Slot Usage (%) 90 | . 99 98 100 98 62 93 92 93 95 100 100 100 100 95 88 87 86 88 87 85 84 77 88 89 90 90 94 95 95 95 95 95 94 91 92 Engine 3 | . 22 16 2 7 7 13 12 12 12 12 12 12 12 10 5 5 5 5 5 5 5 4 5 4 4 4 4 4 3 . . . . . . Core 1 | . . . 13 7 6 . . . . . . . . 1 5 5 5 5 4 5 5 2 . 1 4 4 3 . . . . . . . . Reactor 4 | . . . . . . . . . . . . . . . . . . . . . . 3 5 6 4 4 4 4 4 8 8 8 8 8 8 Hover 12 | . . . . . . . . . . . . . . 4 17 17 16 16 16 15 15 15 15 18 18 18 17 17 17 17 17 16 15 16 13 Flight 2 | . 22 25 24 22 2 20 18 18 18 18 18 18 18 12 . . . . . . . . . . . . . . . . . . . . . Device 19 | . 11 20 24 22 10 26 24 18 18 18 18 18 18 17 17 17 21 22 21 21 21 21 21 19 20 18 19 17 16 17 17 16 15 16 21 Processor 21 | . . . . . . 13 12 18 18 18 18 18 18 17 17 17 16 16 16 15 15 15 20 18 19 22 24 30 30 30 30 29 29 25 27 Protection 6 | . 11 16 19 22 3 6 9 12 12 12 12 12 12 9 5 5 5 5 5 5 5 5 5 4 4 4 6 8 8 8 8 8 7 8 6 Energy Gun 4 | . . . . . . . . . . . . . . . . . . . . . . . . . . . . . . . . 4 6 . 8 Ballistic Gun 6 | . 22 16 8 15 13 13 12 12 12 12 12 12 12 11 11 10 11 11 11 10 10 4 10 9 9 9 8 8 8 7 8 8 3 8 1 Special Weapon 3 | . . . . . . . . . . . . . . . . . . 3 5 5 5 5 2 4 4 4 4 4 4 4 4 4 6 8 4 Peak Build Rating 219 | 9 12 20 31 34 76 76 85 85 89 89 90 89 89 121 121 121 128 141 147 149 150 145 150 170 170 168 195 192 198 199 196 208 214 204 219 Average Rating 163 | 5 10 17 28 31 57 76 82 84 86 89 89 89 89 97 121 120 126 133 139 144 144 133 148 163 169 167 173 192 192 195 196 205 204 199 208 On Entrance 119 | . 9 12 20 31 31 76 76 85 85 89 89 89 89 89 121 121 121 128 137 144 144 144 145 150 170 168 168 192 192 196 196 196 206 204 199 Naked Turns . | . . . . . . . . . . . . . . . . . . . . . . . . . . . . . . . . . . . . Heaviest Build 108 | 11 15 16 32 35 108 25 32 31 32 32 32 32 32 56 56 56 57 59 61 59 59 59 57 72 63 63 66 64 68 72 72 78 89 77 82 Greatest Support 95 | 26 26 27 32 32 82 35 37 37 37 37 37 37 37 56 56 56 58 58 61 61 61 61 61 73 73 73 76 76 76 76 81 83 83 81 95 Greatest Overweight (x) 2 | . . . . 1 1 . . . . . . . . . . . . 1 . . . . . . . . . . . . . . 2 . 1 Average Overweight (x) . | . . . . . . . . . . . . . . . . . . . . . . . . . . . . . . . . . . . . Largest Inventory Capacity 6 | . 3 3 5 5 5 5 5 5 5 5 5 5 5 5 5 5 5 5 6 6 6 6 6 6 6 6 6 6 6 6 6 6 6 6 6 Average Capacity 5 | . . 3 3 5 5 5 5 5 5 5 5 5 5 5 5 5 5 5 5 6 6 6 6 6 6 6 6 6 6 6 6 6 6 6 6 Most Carried 6 | . 3 3 5 5 5 5 5 5 5 5 5 5 5 5 5 5 5 5 6 6 6 6 6 6 6 6 6 6 6 6 6 6 6 6 6 Average Carried 5 | . . 3 3 4 2 5 5 4 5 5 5 5 5 4 4 5 4 4 5 5 6 6 6 6 6 6 5 6 6 6 6 5 5 6 5 Final Capacity 6 | . 3 3 5 5 5 5 5 5 5 5 5 5 5 5 5 5 5 5 6 6 6 6 6 6 6 6 6 6 6 6 6 6 6 6 6 Final Carried 6 | . 3 3 5 5 5 5 5 5 5 5 5 5 5 4 5 5 4 5 6 6 6 6 6 6 6 6 6 6 6 6 6 5 6 6 5 Class Distribution -------------------- 41% | Commander-Gunner 24% | Scavenger-Sprinter 11% | Scavenger-Gunner 8% | Commander-Mutant 5% | Scavenger-Mutant Dominant Class ---------------- Scavenger-Mutant | -10/Materials Scout | -10/Mines Scout | -9/Materials Scout | -9/Mines Commander-Mutant | -9/Exiles Scavenger-Sprinter | -8/Mines Scavenger-Sprinter | -8/Materials Scavenger-Sprinter | -8/Garrison Scavenger-Sprinter | -8/Materials Scavenger-Sprinter | -8/Garrison Scavenger-Sprinter | -8/Materials Scavenger-Sprinter | -8/Garrison Scavenger-Sprinter | -8/Materials Scavenger-Sprinter | -8/Garrison Scavenger-Mutant | -7/Factory Scavenger-Mutant | -7/Storage Commander-Mutant | -7/Recycling Commander-Gunner | -7/Scraptown Commander-Gunner | -5/Factory Commander-Gunner | -5/Upper Caves Scavenger-Gunner | -5/Upper Caves Scavenger-Gunner | -5/Zhirov Scavenger-Gunner | -4/Proximity Caves Scavenger-Gunner | -4/Factory Scavenger-Gunner | -4/Upper Caves Scavenger-Gunner | -4/Upper Caves Scavenger-Gunner | -4/Warlord Scavenger-Sprinter | -3/Proximity Caves Scavenger-Sprinter | -3/Research Scavenger-Sprinter | -3/Testing Scavenger-Sprinter | -2/Research Scavenger-Sprinter | -2/Quarantine Scavenger-Sprinter | -2/Section 7 Scavenger-Sprinter | -1/Access Commander-Gunner | -1/Command Resources | -11 -10 -10 -9 -9 -9 -8 -8 -8 -8 -8 -8 -8 -8 -8 -7 -7 -7 -7 -5 -5 -5 -5 -4 -4 -4 -4 -4 -3 -3 -3 -2 -2 -2 -1 -1 ----------- Run | Yrd Mat Min Mat Min Exi Min Mat Gar Mat Gar Mat Gar Mat Gar Fac Sto Rec Scr Fac Upp Upp Zhi Pro Fac Upp Upp War Pro Res Tes Res Qua Sec Acc Com Matter Collected 42810 | 272 642 132 484 96 926 70 1106 1008 454 766 524 1032 342 716 360 986 514 2976 1420 449 548 . 792 1050 670 556 8339 329 124 786 96 474 2898 486 10387 Remotely 32233 | . . . . . . . . . . . . . . . . . 454 2976 1097 449 548 . 792 1050 670 556 8317 329 124 786 96 438 2867 486 10198 Salvage Created 89508 | 114 1172 99 2079 196 210 121 1418 1515 1134 1391 916 1416 599 814 470 1892 1131 7022 1824 644 1155 . 2248 3468 2008 788 16388 665 96 1641 495 1557 6099 1279 25444 Parts 5364 | 6 93 18 141 20 74 12 145 75 86 91 69 93 52 76 42 144 35 533 139 50 73 . 122 190 95 61 629 57 16 137 27 74 339 93 1457 Haulers Intercepted 15 | . 2 . 4 . . . 1 . . . 1 . . . . 2 . . 1 . . . 1 1 . . . . . . . . 2 . . Recyclers Shooed 8 | . 1 . 1 . . . . . 1 . . . . . . 1 1 . 1 . . . . . . . . . . . . . . . 2 Parts Field Recycled . | . . . . . . . . . . . . . . . . . . . . . . . . . . . . . . . . . . . . Retrieved Matter . | . . . . . . . . . . . . . . . . . . . . . . . . . . . . . . . . . . . . Parts Self-Destructed 475 | . . . . . . . . . . . . . . . . . . 17 . 44 76 . 136 . 89 61 . 52 . . . . . . . Prevented . | . . . . . . . . . . . . . . . . . . . . . . . . . . . . . . . . . . . . Kills | -11 -10 -10 -9 -9 -9 -8 -8 -8 -8 -8 -8 -8 -8 -8 -7 -7 -7 -7 -5 -5 -5 -5 -4 -4 -4 -4 -4 -3 -3 -3 -2 -2 -2 -1 -1 ------- Run | Yrd Mat Min Mat Min Exi Min Mat Gar Mat Gar Mat Gar Mat Gar Fac Sto Rec Scr Fac Upp Upp Zhi Pro Fac Upp Upp War Pro Res Tes Res Qua Sec Acc Com Combat Hostiles Destroyed 1287 | . 35 10 51 9 2 3 29 25 15 25 12 32 8 24 6 30 5 109 25 20 25 . 30 43 21 15 247 10 2 16 3 11 51 12 326 Melee 24 | . . . 22 . . . . . . . . . . . . . . . . . . . . . . . . . . . . . . . 2 Guns 1174 | . 35 10 29 9 2 3 29 25 15 25 12 32 8 24 6 30 5 108 25 20 25 . 30 43 21 15 246 10 2 15 3 11 46 12 243 Cannons 1 | . . . . . . . . . . . . . . . . . . 1 . . . . . . . . . . . . . . . . . AOE 56 | . . . . . . . . . . . . . . . . . . . . . . . . . . . 1 . . . . . 5 . 50 Classes Destroyed 44 | 2 5 2 1 . 2 1 2 . 1 3 . . . 1 . . 1 9 2 . . . . 2 1 1 3 . . 1 . . 1 . 3 Worker 19 | . . 1 . . . 1 1 . 3 . 2 . . . 1 3 . . 1 . . . . 1 . . . . . . . . 1 1 3 Builder 19 | . 1 . . . . . 1 . 1 . . . . . . 2 . . . . . . . 4 . . . . . 1 . . 6 3 . Tunneler 6 | 1 . . . . . 1 . . . . . . 1 . . . . 2 1 . . . . . . . . . . . . . . . . Hauler 15 | . 2 . 4 . . . 1 . . . 1 . . . . 2 . . 1 . . . 1 1 . . . . . . . . 2 . . Recycler 24 | 1 2 . . . . . . . 1 . 3 . . . 1 1 6 1 . . . . . . . . . . . . 1 . 1 1 5 Carrier 3 | . . . . . . . . . . 1 . . . . . . . . . . . . . . . . . . . . . 1 . . 1 Minesweeper 2 | . . . . . . . . . . . . . . . . . . . . . . . . . 2 . . . . . . . . . . Mechanic 5 | . . . . . . . . . . . . . . . . . . . . . . . . 1 . . 1 . . . . . . . 3 Operator 13 | . . . . . . . 4 . 1 . . . 1 . . 1 . . 1 . . . . . . . . . . . 1 1 . 1 2 Drone 1 | . . . . . . . . . . . . . . . . . . . . . . . . . . . . . . . . . . . 1 Turret 2 | . . . . . 1 . . . . . . . . . . . . 1 . . . . . . . . . . . . . . . . . Watcher 51 | . 3 . 5 . . . 4 . 3 . 4 . 3 1 2 2 . . 3 . . . . 3 . . . . 2 3 1 3 4 3 2 Swarmer 203 | . 12 9 17 7 . . 10 7 . 3 3 3 2 14 . 3 . . 6 8 15 . 1 5 3 2 13 5 . . . . . 5 50 Cutter 16 | . . . . . . . . . . . . . . 3 . . . . 2 . . . . . . . . . . . . . . . 11 Saboteur 25 | . . . . . . . . . . . . . . . . . . . . . . . . 3 . . 6 . . . . . . . 16 Grunt 431 | . 23 . 24 2 . 2 8 15 4 13 5 15 2 6 2 17 . 3 3 2 7 . 20 19 9 5 92 1 . 7 1 8 18 2 96 Brawler 45 | . . . . . . 1 . 1 . 2 . 1 . . . 1 . . . 2 . . 2 3 2 3 16 . . . . . 2 . 9 Duelist 29 | . . . . . . . . . 1 1 . 1 . 1 . . 1 . . . . . 2 2 1 . 8 . . . . . . . 11 Protector 21 | . . . . . . . . . . . . . . . . . 1 . 2 . . . 1 2 . . 12 . . . . . . . 3 Researcher 14 | . . . . . . . . . . . . . . . . . . . . . . . . . . . . . . 5 . . 9 . . Sentry 80 | . . . 10 . . . 10 . 7 . 3 8 4 . 2 8 3 . 2 2 2 . 1 4 2 1 . 1 2 . . . 5 2 1 Demolisher 21 | . . . . . . . . . . . . . . . . . . . 4 . . . 1 1 . . 4 . . . . . . . 11 Specialist 20 | . . . . . . . . . . 1 . . . . . . . . . . . . . 1 . . 7 . . . . . . . 11 Hunter 88 | . . . . . . . 1 2 3 . 1 1 . . 1 . . . 3 2 1 . 2 3 2 2 9 2 . 5 2 . 10 . 36 Programmer 113 | . . . . . . . . . . 5 . 3 . . 1 1 . . 3 . . . . 2 2 1 24 1 . 3 . 3 8 3 53 Heavy 2 | . . . . . . . . . . . . . . . . . . . 2 . . . . . . . . . . . . . . . . Q-Series 2 | . . . . . . . . . . . . . . . . . . . . . . . . . . . . . . . . . 2 . . Behemoth 4 | . . . . . . . . . . . . . . . . . . . . . . . . . . 1 3 . . . . . . . . S7 Guard 2 | . . . . . . . . . . . . . . . . . . . . . . . . . . . . . . . . . 2 . . M Guard 2 | . . . . . . . . . . . . . . . . . . . . . . . . . . . . . . . . . . . 2 Tracker 3 | . . . . . . . . . . . . . . . . . . . . . . . . . . . . . . . . . 3 . . Combat Programmer 4 | . . . . . . . . . . . . . . . . . . . . . . . . . . . . . . . . . 2 . 2 Striker 18 | . . . . . . . . . . . . . . . . . . . . . . . . . . . 18 . . . . . . . . Executioner 18 | . . . . . . . . . . . . . . . . . . . . . . . . . . . 18 . . . . . . . . Alpha 7 2 | . . . . . . . . . . . . . . . . . . . . . . . . . . . . . . . . . . . 2 Protovariant G 1 | . . . . . . . . . . . . . . . . . . . . . . . . . . . . . . 1 . . . . . Bolteater 6 | . . . . . . . . . . . . . . . . . . 6 . . . . . . . . . . . . . . . . . Federalist 15 | . . . . . . . . . . . . . . . . . . 15 . . . . . . . . . . . . . . . . . Explorer 6 | . . . . . . . . . . . . . . . . . . 6 . . . . . . . . . . . . . . . . . Ranger 10 | . . . . . . . . . . . . . . . . . . 10 . . . . . . . . . . . . . . . . . Guru 12 | . . . . . . . . . . . . . . . . . . 12 . . . . . . . . . . . . . . . . . Scientist 5 | . . . . . . . . . . . . . . . . . . 5 . . . . . . . . . . . . . . . . . Scrapper 34 | . . . . . . . . . . . . . . . . . . 34 . . . . . . . . . . . . . . . . . Elite 23 | . . . . . . . . . . . . . . . . . . 23 . . . . . . . . . . . . . . . . . Zionite 6 | . . . . . 5 . . . . . . . . . . . . 1 . . . . . . . . . . . . . . . . . Tinkerer 7 | . . . . . . . . . . . . . . . . . . 2 . . . . . . . . 5 . . . . . . . . Assembled 2 | . . 1 . . 1 . . . . . . . . . . . . . . . . . . . . . . . . . . . . . . Surgeon 1 | . . . . . . . . . . . . . . . . . . . . . . . . . . . 1 . . . . . . . . Wasp 4 | . . . . . . . . . . . . . . . . . . . . 3 . . . . . . 1 . . . . . . . . Thug 10 | . . . . . . . . . . . . . . . . . . . . 1 . . . . . . 7 . . . . . . . 2 Savage 3 | . . . . . . . . . . . . . . . . . . . . . . . . . . . . . . . . . . . 3 Butcher 4 | . . . . . . . . . . . . . . . . . . . . . . . . . . . . . . . . . . . 4 Bouncer 4 | . . . . . . . . . . . . . . . . . . . . . . . . . . . 4 . . . . . . . . Martyr 1 | . . . . . . . . . . . . . . . . . . . . . . . . . . . 1 . . . . . . . . Guerrilla 2 | . . . . . . . . . . . . . . . . . . . . . . . . . . . . . . . . . . . 2 Wizard 5 | . . . . . . . . . . . . . . . . . . . . . . . . . . . 1 . . . . . . . 4 Marauder 1 | . . . . . . . . . . . . . . . . . . . . . . . . . . . 1 . . . . . . . . Fireman 1 | . . . . . . . . . . . . . . . . . . . . . . . . . . . . . . . . . . . 1 Mutant 13 | . . . . . . . . . . . . . . . . . . . . . . . . . . . 1 . . . . . . . 12 Commander 1 | . . . . . . . . . . . . . . . . . . . . . . . . . . . 1 . . . . . . . . Best Kill Streak 82 | 2 8 4 8 4 3 5 11 17 9 11 6 7 11 19 3 20 4 21 4 8 9 . 8 15 13 9 82 10 1 7 4 7 10 9 15 Combat Bots Only 82 | . 8 3 7 4 1 3 9 17 5 10 4 7 5 19 3 12 2 19 3 8 9 . 8 11 13 9 82 10 1 7 2 5 7 6 14 Max Kills in Single Turn 4 | 1 1 2 1 1 1 2 2 2 3 2 2 2 2 2 1 4 2 2 2 4 2 . 2 3 2 2 4 2 1 2 2 2 3 2 4 Gunslinging 1 | . . . . . . . . . . . 1 . . 1 . . . 1 . . 1 . 1 1 . . 1 . . 1 . . . . 1 Exploded 4 | . . . . . . . . . . . . . . . . . . . . . . . . . . . 1 . . . . . 2 . 4 Melee 1 | . . . 1 . . . . . . . . . . . . . . . . . . . . . . . . . . . . . . . 1 Uniques/NPCs Destroyed 8 | . . . . . 4 . . . . . . . . . . . 1 1 . . . . . . . . . . . . . . . . 2 8R-AWN (-9/Exiles) EX-HEX (-9/Exiles) EX-BIN (-9/Exiles) EX-DEC (-9/Exiles) 01-MTF (-7/Recycling) Triborg (-7/Scraptown) MAIN.C Shell (-1/Command) MAIN.C (-1/Command) Combat | -11 -10 -10 -9 -9 -9 -8 -8 -8 -8 -8 -8 -8 -8 -8 -7 -7 -7 -7 -5 -5 -5 -5 -4 -4 -4 -4 -4 -3 -3 -3 -2 -2 -2 -1 -1 -------- Run | Yrd Mat Min Mat Min Exi Min Mat Gar Mat Gar Mat Gar Mat Gar Fac Sto Rec Scr Fac Upp Upp Zhi Pro Fac Upp Upp War Pro Res Tes Res Qua Sec Acc Com Hostile Shots Fired 4753 | . 105 25 159 31 37 . 71 28 22 32 14 46 9 76 15 108 46 198 114 23 44 . 40 44 31 60 481 21 . 61 3 28 442 41 2298 Missed 1990 | . 38 12 67 9 7 . 34 11 12 16 6 16 6 32 8 53 17 78 38 6 15 . 16 21 11 27 215 11 . 27 1 14 123 10 1033 Damage Taken 35639 | . 495 104 814 158 490 . 365 154 118 162 72 350 25 466 165 398 146 1154 1635 180 309 . 334 307 180 569 5051 101 . 247 13 158 4053 671 16195 Core 22888 | . 340 62 531 93 385 . 205 83 71 73 45 205 7 240 63 206 63 564 953 106 150 . 173 186 115 343 3185 69 . 144 10 107 2672 510 10929 Absorbed by Shields 599 | . . . . . . . . 4 . 5 . . . . . . . 155 38 40 71 . 28 . 122 . . 8 . . . . . . 128 Redirected to Core 19919 | . 266 57 403 77 367 . 150 72 39 68 34 127 7 187 63 187 63 512 738 106 111 . 161 154 96 321 2704 59 . 144 10 90 2417 459 9670 Redirected to Shielding 370 | . . 1 30 4 . . 11 21 23 24 11 60 10 80 . . . . . . . . . . . . 95 . . . . . . . . Ignored by Resistances 24597 | . 160 37 306 65 169 . 146 63 44 59 28 129 10 176 59 220 68 493 1784 81 143 . 136 116 108 201 1882 93 . 208 13 74 2633 275 14618 Regen/Repaired (Parts) 484 | . . . 11 . . . . . . . . . . . . . . . . . . . . . . . . . . . . . 4 . 469 Core Remaining (%) 97 | 100 . 100 . . . 100 . . . . . . . 77 . . . 98 . . . . 100 . . . . 100 . 100 . . 100 . 100 Volleys Fired 4368 | 2 97 17 54 17 59 5 88 84 37 70 35 89 30 55 23 80 35 246 101 36 44 . 55 80 55 44 663 26 5 51 8 31 339 48 1659 Largest 3 | 2 2 2 2 2 2 2 2 2 2 2 2 2 2 2 2 2 2 3 2 2 2 . 2 2 2 3 2 2 2 2 2 3 3 2 3 Hottest 200 | 40 40 40 46 46 60 60 60 60 60 60 60 60 60 60 60 60 60 80 60 60 60 . 60 60 60 120 60 60 60 120 60 100 160 60 200 Shots Fired 8126 | 4 194 34 108 34 101 10 176 168 74 140 70 178 51 110 46 160 70 488 201 72 88 . 110 160 110 89 1307 52 10 97 16 78 609 96 2815 Gun 7735 | 4 194 34 108 34 94 10 176 168 74 140 70 178 51 110 46 160 70 476 200 72 88 . 110 160 110 88 1307 52 10 96 16 77 525 96 2531 Cannon . | . . . . . . . . . . . . . . . . . . . . . . . . . . . . . . . . . . . . Launcher 7 | . . . . . 7 . . . . . . . . . . . . . . . . . . . . . . . . . . . . . . Special 384 | . . . . . . . . . . . . . . . . . . 12 1 . . . . . . 1 . . . 1 . 1 84 . 284 Kinetic 5971 | 4 194 34 108 34 94 10 176 168 74 140 70 178 51 110 46 160 70 476 200 72 88 . 110 160 110 88 1307 52 10 82 16 61 270 96 1052 Thermal 13 | . . . . . . . . . . . . . . . . . . 11 1 . . . . . . 1 . . . . . . . . . Explosive 7 | . . . . . 7 . . . . . . . . . . . . . . . . . . . . . . . . . . . . . . Electromagnetic 1764 | . . . . . . . . . . . . . . . . . . . . . . . . . . . . . . 14 . 16 255 . 1479 Robot Hit Streak 81 | 4 38 8 20 31 43 10 17 9 10 33 37 35 5 15 17 18 37 32 24 8 20 . 18 21 17 27 33 21 14 20 5 18 60 19 81 Robot Miss Streak 4 | . 3 1 2 2 2 1 4 3 2 1 2 1 2 2 4 3 1 2 2 2 2 . 2 2 3 2 2 1 . 1 1 2 3 2 3 Penetration Max 3 | . . . . . 2 2 2 1 2 1 1 1 1 2 1 2 1 1 1 1 2 . 1 2 2 2 2 1 . 1 1 2 2 2 3 Secondary Targets 136 | . 3 1 2 2 . . 2 1 . 4 3 1 . 7 . 4 . 14 . . 7 . 7 4 . . 29 . . 3 . . 5 . 37 Max Gunslinging Chain 1 | . 1 1 1 1 . . 1 1 . 1 1 1 . 1 . 1 . 1 . . 1 . 1 1 . . 1 . . 1 . . 1 . 1 Shots Hit Robots 5898 | 4 151 25 156 24 78 7 109 41 48 73 46 72 26 71 26 112 66 343 148 34 63 . 91 98 73 73 924 40 5 67 5 46 505 56 2192 Core Hits 3388 | 3 65 12 65 11 35 7 56 36 30 40 29 46 15 40 17 66 17 175 62 26 37 . 54 89 51 33 471 24 5 43 8 35 252 33 1400 Critical Kills 986 | . 1 . 1 1 1 4 24 21 15 21 13 20 11 15 6 27 9 95 29 17 19 . 27 47 32 12 223 11 4 22 6 16 47 18 171 Critical Parts Destroyed 1046 | . 3 . 2 . 10 2 30 19 19 18 10 27 5 20 7 34 12 88 24 7 13 . 35 34 27 13 244 11 . 23 2 22 49 16 220 Critical Strikes 2186 | . 4 . 4 1 11 6 57 41 34 39 23 48 16 42 13 61 24 184 55 24 37 . 63 83 59 38 525 22 5 46 8 38 100 34 441 Destroy 2185 | . 4 . 3 1 11 6 57 41 34 39 23 48 16 42 13 61 24 184 55 24 37 . 63 83 59 38 525 22 5 46 8 38 100 34 441 Sever 1 | . . . 1 . . . . . . . . . . . . . . . . . . . . . . . . . . . . . . . . Melee Attacks 107 | . . . 83 . . . . . . . . . . . . . 22 1 . . . . 1 . . . . . . . . . . . . Impact . | . . . . . . . . . . . . . . . . . . . . . . . . . . . . . . . . . . . . Slashing 83 | . . . 83 . . . . . . . . . . . . . . . . . . . . . . . . . . . . . . . . Piercing . | . . . . . . . . . . . . . . . . . . . . . . . . . . . . . . . . . . . . Sneak Attacks 28 | . . . 5 . . . . . . . . . . . . . 21 1 . . . . 1 . . . . . . . . . . . . Combat Hostiles 10 | . . . 2 . . . . . . . . . . . . . 8 . . . . . . . . . . . . . . . . . . Follow-up Attacks 8 | . . . 8 . . . . . . . . . . . . . . . . . . . . . . . . . . . . . . . . Damage Inflicted 125028 | 53 1971 346 4281 391 1721 175 2163 1088 1099 1345 938 1903 526 1511 509 2411 911 6237 2473 633 1240 . 1857 2640 1850 1338 18887 865 109 1493 175 1038 7368 1139 52344 Guns 100558 | 53 1971 346 1260 391 1384 175 2163 1088 1099 1345 938 1903 526 1511 509 2411 911 6173 2473 633 1240 . 1857 2414 1850 1328 18887 865 109 1387 175 1038 5512 1139 33494 Cannons . | . . . . . . . . . . . . . . . . . . . . . . . . . . . . . . . . . . . . Explosions 21375 | . . . . . 337 . . . . . . . . . . . . . . . . . . 226 . . . . . 106 . . 1856 . 18850 Melee 3021 | . . . 3021 . . . . . . . . . . . . . . . . . . . . . . . . . . . . . . . . Ramming . | . . . . . . . . . . . . . . . . . . . . . . . . . . . . . . . . . . . . Kinetic 82351 | 53 1971 346 1260 391 1384 175 2163 1088 1099 1345 938 1903 526 1511 509 2411 911 6173 2473 633 1240 . 1857 2414 1850 1328 18887 865 109 1291 175 1009 3877 1139 17047 Thermal 20534 | . . . . . . . . . . . . . . . . . . 64 . . . . . . . 10 . . . 106 . . 1856 . 18498 Explosive 563 | . . . . . 337 . . . . . . . . . . . . . . . . . . 226 . . . . . . . . . . . Electromagnetic 18559 | . . . . . . . . . . . . . . . . . . . . . . . . . . . . . . 96 . 29 1635 . 16799 Impact . | . . . . . . . . . . . . . . . . . . . . . . . . . . . . . . . . . . . . Slashing 3021 | . . . 3021 . . . . . . . . . . . . . . . . . . . . . . . . . . . . . . . . Piercing . | . . . . . . . . . . . . . . . . . . . . . . . . . . . . . . . . . . . . Highest Corruption 19 | . . . . . 1 . . . . 1 1 . . . . . . 1 4 1 1 1 1 . 1 1 9 9 . . . 1 19 4 5 Average Corruption 4 | . . . . . 1 . . . . 1 1 . . . . . . 1 1 1 1 1 1 . 1 1 7 9 . . . 1 10 2 3 Corruption Purged 35 | . . . . . 1 . . . . . 1 . . . . . . . 3 . . . . . . . . . . . . . . . 30 Corruption Blocked . | . . . . . . . . . . . . . . . . . . . . . . . . . . . . . . . . . . . . Effects 386 | . . . . . 1 . . . . . 3 . . . . . . 7 17 4 3 1 5 . 3 5 118 14 . . . 7 85 4 109 Message Errors 73 | . . . . . 1 . . . . . . . . . . . . 1 3 1 1 . 1 . . 1 22 2 . . . 2 14 1 23 Matter Fused 82 | . . . . . . . . . . . . . . . . . . . 5 1 1 . 3 . . 2 32 4 . . . 1 11 1 21 Heat Flow Errors 43 | . . . . . . . . . . . 2 . . . . . . 3 1 1 . . . . 1 1 9 . . . . 1 12 . 12 Energy Discharges 45 | . . . . . . . . . . . 1 . . . . . . 1 2 1 1 . . . . . 8 . . . . 1 13 1 16 Parts Rejected 1 | . . . . . . . . . . . . . . . . . . 1 . . . . . . . . . . . . . . . . . Parts Fused 7 | . . . . . . . . . . . . . . . . . . . . . . 1 . . . . 2 . . . . . 4 . . Data Loss (minor) 39 | . . . . . . . . . . . . . . . . . . 1 2 . . . . . 1 1 6 5 . . . 1 7 . 15 Data Loss (major) 17 | . . . . . . . . . . . . . . . . . . . . . . . . . . . 4 3 . . . . 4 . 6 Misfires 24 | . . . . . . . . . . . . . . . . . . . 2 . . . . . . . 6 . . . . 1 5 . 10 Alerts 10 | . . . . . . . . . . . . . . . . . . . . . . . 1 . 1 . 4 . . . . . 1 1 2 Misdirections 3 | . . . . . . . . . . . . . . . . . . . . . . . . . . . . . . . . . 3 . . Weapon Failures 42 | . . . . . . . . . . . . . . . . . . . 2 . . . . . . . 25 . . . . . 11 . 4 Overload Shots . | . . . . . . . . . . . . . . . . . . . . . . . . . . . . . . . . . . . . Overflow Damage 949 | . . . 316 . . . . . . . . . . . . . . . . . . . . . . . . . . . . . 105 . 528 Projectiles . | . . . . . . . . . . . . . . . . . . . . . . . . . . . . . . . . . . . . Explosions 633 | . . . . . . . . . . . . . . . . . . . . . . . . . . . . . . . . . 105 . 528 Melee 316 | . . . 316 . . . . . . . . . . . . . . . . . . . . . . . . . . . . . . . . Knockbacks . | . . . . . . . . . . . . . . . . . . . . . . . . . . . . . . . . . . . . Impact . | . . . . . . . . . . . . . . . . . . . . . . . . . . . . . . . . . . . . Kinetic . | . . . . . . . . . . . . . . . . . . . . . . . . . . . . . . . . . . . . Secondary . | . . . . . . . . . . . . . . . . . . . . . . . . . . . . . . . . . . . . Self-Inflicted Damage 585 | . . . . . . . . . . . . . . . . . . . . . . . . . . . . . . . . . 213 . 372 Shots 18 | . . . . . . . . . . . . . . . . . . . . . . . . . . . . . . . . . 4 . 14 Rammed . | . . . . . . . . . . . . . . . . . . . . . . . . . . . . . . . . . . . . Targets Rammed . | . . . . . . . . . . . . . . . . . . . . . . . . . . . . . . . . . . . . Kicked . | . . . . . . . . . . . . . . . . . . . . . . . . . . . . . . . . . . . . Crushed . | . . . . . . . . . . . . . . . . . . . . . . . . . . . . . . . . . . . . Highest Temperature 256 | . 138 . . . . . . . . . 186 . . . . . . 204 226 109 . . . . 85 50 256 . . 1 . 53 181 . 199 Average Temperature 55 | . 36 . . . . . . . . . 97 . . . . . . 91 142 58 . . . . 58 50 102 . . 1 . 53 70 . 66 Received Heat Transfer 6367 | . 258 . 363 66 60 . 162 78 54 54 27 225 9 69 33 168 60 820 35 9 38 . 88 42 15 84 639 . . 18 . 54 519 63 2257 Siege Activations . | . . . . . . . . . . . . . . . . . . . . . . . . . . . . . . . . . . . . Robots Corrupted 38 | . . . . . . . . . . . . . . . . . . . . . . . . . . . . . . 1 . . . . 37 Combat Hostiles 31 | . . . . . . . . . . . . . . . . . . . . . . . . . . . . . . 1 . . . . 30 Parts Fried 133 | . . . . . 1 . . . . . . . . . . 2 . . . . . . . . . . 2 . . 1 . . 3 . 124 Impact Corruptions . | . . . . . . . . . . . . . . . . . . . . . . . . . . . . . . . . . . . . Robots Melted . | . . . . . . . . . . . . . . . . . . . . . . . . . . . . . . . . . . . . Combat Hostiles . | . . . . . . . . . . . . . . . . . . . . . . . . . . . . . . . . . . . . Parts Melted 51 | . . . . . . . . . . . . . . . . . 5 21 . . 1 . 2 . 2 . 10 . . . . . . . 10 Heat Transferred 13367 | . . . . . . . . . . . . . . . . . . 112 . . . . . . . . . . . 50 . . 1124 . 12081 Parts Sabotaged 8 | . . . . . . . . . . . . . . . . . . . . . . . . . . . . . . . . . 2 . 6 Parts Stolen . | . . . . . . . . . . . . . . . . . . . . . . . . . . . . . . . . . . . . Parts Stripped . | . . . . . . . . . . . . . . . . . . . . . . . . . . . . . . . . . . . . Power Chain Reactions 110 | . . . . . . . . . . . . . . . . . . . . . . . . . . . . . . 1 . . 14 . 95 Alert | -11 -10 -10 -9 -9 -9 -8 -8 -8 -8 -8 -8 -8 -8 -8 -7 -7 -7 -7 -5 -5 -5 -5 -4 -4 -4 -4 -4 -3 -3 -3 -2 -2 -2 -1 -1 ------- Run | Yrd Mat Min Mat Min Exi Min Mat Gar Mat Gar Mat Gar Mat Gar Fac Sto Rec Scr Fac Upp Upp Zhi Pro Fac Upp Upp War Pro Res Tes Res Qua Sec Acc Com Peak Influence 7515 | 10 776 489 1691 868 . 81 960 1197 833 1491 937 1666 706 1020 677 943 434 . 474 . . . . 1559 . . . . 154 599 395 705 1778 1552 7515 Initial 933 | . 5 255 160 557 . . 26 248 502 474 625 533 699 257 464 244 198 . . . . . . 319 . . . . 28 74 293 153 308 933 873 Average 1972 | 1 417 376 1032 736 . 39 621 822 550 1025 772 1227 422 797 581 630 230 . 224 . . . . 971 . . . . 95 286 311 471 1276 1255 2919 Maximum Alert Level 5 | . 3 2 5 3 . . 3 4 3 4 3 5 3 3 2 3 2 . 2 . . . . 4 . . . . . 2 1 3 5 4 5 Low Security (%) 5 | 100 26 . 2 . . 100 7 . . . . . 20 . . . 36 . 40 . . . . . . . . . 100 28 . 3 . . . Level 1 7 | . 18 45 7 . . . 6 9 10 . . . 19 13 . 13 55 . 45 . . . . 6 . . . . . 52 100 18 4 . . Level 2 12 | . 31 54 17 35 . . 45 14 80 19 38 5 59 17 100 44 8 . 13 . . . . 27 . . . . . 18 . 76 5 . 3 Level 3 15 | . 23 . 24 64 . . 40 65 8 39 61 34 1 69 . 42 . . . . . . . 21 . . . . . . . 2 17 30 12 Level 4 27 | . . . 41 . . . . 10 . 41 . 37 . . . . . . . . . . . 44 . . . . . . . . 61 69 34 Level 5 5 | . . . 6 . . . . . . . . 22 . . . . . . . . . . . . . . . . . . . . 11 . 7 High Security 24 | . . . . . . . . . . . . . . . . . . . . . . . . . . . . . . . . . . . 41 Max Security . | . . . . . . . . . . . . . . . . . . . . . . . . . . . . . . . . . . . . Sterilizations 1 | . . . 1 . . . . . . . . . . . . . . . . . . . . . . . . . . . . . . . . Squads Dispatched 137 | . 12 . 12 1 . . 3 . 3 . 2 . 1 . 2 6 . 1 11 . 1 . 1 5 . . . . 1 2 . 5 29 6 33 Investigation 41 | . 12 . 11 1 . . 2 . 1 . 2 . . . 1 . . . 2 . 1 . . . . . . . 1 . . 2 . . 5 Extermination 20 | . . . . . . . . . . . . . . . 1 1 . . 2 . . . . 1 . . . . . 1 . 1 5 1 7 Reinforcement 36 | . . . 1 . . . 1 . 2 . . . . . . 3 . 1 6 . . . . 1 . . . . . 1 . 1 15 . 4 Assault 29 | . . . . . . . . . . . . . . . . 1 . . . . . . 1 3 . . . . . . . 1 4 2 17 Garrison 6 | . . . . . . . . . . . . . 1 . . 1 . . 1 . . . . . . . . . . . . . . 3 . Intercept 5 | . . . . . . . . . . . . . . . . . . . . . . . . . . . . . . . . . 5 . . Searches Triggered . | . . . . . . . . . . . . . . . . . . . . . . . . . . . . . . . . . . . . Construction Impeded 7 | . . . . . . . 1 . 1 . . . . . . . . 1 . . . . . . . . . . . . . . 4 . . Haulers Reinforced 4 | . . . . . . . . . . . . . . . . 2 . . 1 . . . . . . . . . . . . 1 . . . Active Scanning Responses . | . . . . . . . . . . . . . . . . . . . . . . . . . . . . . . . . . . . . Cargo Convoy Interrupts 2 | . . . . . . . . . . . . . . . . . . . 1 . . . . 1 . . . . . . . . . . . Stealth | -11 -10 -10 -9 -9 -9 -8 -8 -8 -8 -8 -8 -8 -8 -8 -7 -7 -7 -7 -5 -5 -5 -5 -4 -4 -4 -4 -4 -3 -3 -3 -2 -2 -2 -1 -1 --------- Run | Yrd Mat Min Mat Min Exi Min Mat Gar Mat Gar Mat Gar Mat Gar Fac Sto Rec Scr Fac Upp Upp Zhi Pro Fac Upp Upp War Pro Res Tes Res Qua Sec Acc Com Distress Signals 31 | . 1 . 2 . . . 1 . 1 . . . 1 . . 1 . 3 1 . . . . . . . 1 . . . . 1 2 1 15 Communications Jammed . | . . . . . . . . . . . . . . . . . . . . . . . . . . . . . . . . . . . . Distress Signals . | . . . . . . . . . . . . . . . . . . . . . . . . . . . . . . . . . . . . Times Spotted 2804 | . 36 10 66 11 16 3 38 19 14 20 17 23 12 26 8 33 6 85 32 13 25 . 28 35 16 13 194 9 . 16 1 14 131 25 1809 Peak Tracking Total 59 | . 6 3 5 4 9 3 5 4 4 5 3 3 3 5 2 5 2 6 5 4 6 . 6 7 8 9 12 3 . 5 1 9 7 6 59 Tactical Retreats 108 | . . 1 4 2 5 . 2 1 . . . . . 2 . 3 . 3 2 . 4 . . . 1 2 11 . . . . 4 . 1 60 Traps | -11 -10 -10 -9 -9 -9 -8 -8 -8 -8 -8 -8 -8 -8 -8 -7 -7 -7 -7 -5 -5 -5 -5 -4 -4 -4 -4 -4 -3 -3 -3 -2 -2 -2 -1 -1 ------- Run | Yrd Mat Min Mat Min Exi Min Mat Gar Mat Gar Mat Gar Mat Gar Fac Sto Rec Scr Fac Upp Upp Zhi Pro Fac Upp Upp War Pro Res Tes Res Qua Sec Acc Com Traps Triggered 37 | . 1 . 1 . . . . 3 1 2 1 2 . . . 1 . . 2 . . . . . . . 5 . . . . 5 . . 13 Indirectly . | . . . . . . . . . . . . . . . . . . . . . . . . . . . . . . . . . . . . Trap Hack Attempts 2 | . . . . . . . . . . . . . . . . 2 . . . . . . . . . . . . . . . . . . . Triggered . | . . . . . . . . . . . . . . . . . . . . . . . . . . . . . . . . . . . . Disarmed . | . . . . . . . . . . . . . . . . . . . . . . . . . . . . . . . . . . . . Reprogrammed 6 | . . . . . . . . . . . . . . . . 2 . . . . . . . . . . . . . 4 . . . . . Reused 2 | . . . . . . . . . . . . . . . . . . . . . . . . . . . . . . 2 . . . . . Traps Extracted . | . . . . . . . . . . . . . . . . . . . . . . . . . . . . . . . . . . . . Installed . | . . . . . . . . . . . . . . . . . . . . . . . . . . . . . . . . . . . . Triggered 31 | . . . . . . . . . . . . . . . . . . . . . . . . . . 1 28 . . 2 . . . . . Machines | -11 -10 -10 -9 -9 -9 -8 -8 -8 -8 -8 -8 -8 -8 -8 -7 -7 -7 -7 -5 -5 -5 -5 -4 -4 -4 -4 -4 -3 -3 -3 -2 -2 -2 -1 -1 ---------- Run | Yrd Mat Min Mat Min Exi Min Mat Gar Mat Gar Mat Gar Mat Gar Fac Sto Rec Scr Fac Upp Upp Zhi Pro Fac Upp Upp War Pro Res Tes Res Qua Sec Acc Com Machines Disabled 165 | . 1 . . 1 10 . 10 8 3 11 3 6 2 2 5 3 1 30 9 . 1 . 1 8 . . 10 . . 6 1 2 20 2 9 Max in Single Turn 4 | . 1 . . 1 2 . 1 1 1 2 1 1 1 1 1 1 1 2 4 . 1 . 1 2 . . 1 . . 1 1 1 3 1 2 Garrison Access 4 | . . . . . . . . . . . . . . . . 1 . . 1 . . . . 1 . . . . 1 . . . . . . Garrison Relay 18 | . . . . . . . . 6 . 7 . 5 . . . . . . . . . . . . . . . . . . . . . . . Phase Generator 1 | . . . . . . . . . . . . . . . . . . . . . . . . . . . . . . . . . . . 1 Machines Repaired . | . . . . . . . . . . . . . . . . . . . . . . . . . . . . . . . . . . . . Machines Dismantled 6 | . . . . . . . . . . . . . . . . . . 6 . . . . . . . . . . . . . . . . . Machines Sabotaged 4 | . 3 . 1 . . . . . . . . . . . . . . . . . . . . . . . . . . . . . . . . Overloaded Fab Kills . | . . . . . . . . . . . . . . . . . . . . . . . . . . . . . . . . . . . . Hacking | -11 -10 -10 -9 -9 -9 -8 -8 -8 -8 -8 -8 -8 -8 -8 -7 -7 -7 -7 -5 -5 -5 -5 -4 -4 -4 -4 -4 -3 -3 -3 -2 -2 -2 -1 -1 --------- Run | Yrd Mat Min Mat Min Exi Min Mat Gar Mat Gar Mat Gar Mat Gar Fac Sto Rec Scr Fac Upp Upp Zhi Pro Fac Upp Upp War Pro Res Tes Res Qua Sec Acc Com Machines Accessed 168 | . 11 2 13 1 1 . 13 4 7 4 7 3 6 3 4 12 8 1 12 1 2 4 . 5 1 . 2 1 4 7 4 9 1 3 12 Terminals 127 | . 8 1 10 . . . 10 4 6 4 5 3 5 3 3 11 3 . 10 . 1 . . 4 . . . 1 3 7 4 8 1 3 9 Fabricators 2 | . . . . . . . . . . . . . . . 1 . . . 1 . . . . . . . . . . . . . . . . Repair Stations 3 | . 1 . 1 . . . . . . . . . . . . . . . . . . . . . . . . . . . . . . . 1 Recycling Units 14 | . 2 . 2 . . . 2 . . . 1 . . . . . 5 . . . . . . . . . . . . . . . . . 2 Scanalyzers . | . . . . . . . . . . . . . . . . . . . . . . . . . . . . . . . . . . . . Garrison Access 9 | . . . . . . . 1 . 1 . 1 . 1 . . 1 . . 1 . . . . 1 . . . . 1 . . 1 . . . Total Hacks 424 | . 22 2 28 1 1 . 37 4 16 5 26 4 19 4 18 32 20 4 34 3 6 17 . 17 1 . 5 1 11 19 11 21 1 5 29 Successful 281 | . 18 2 12 1 1 . 22 4 10 4 22 3 14 2 9 19 15 4 16 3 6 17 . 8 1 . 5 1 8 15 6 12 1 3 17 Failed 142 | . 4 . 16 . . . 15 . 6 1 4 1 5 2 9 13 4 . 18 . . . . 9 . . . . 3 4 5 9 . 2 12 Catastrophic 23 | . . . 4 . . . 5 . 2 . . . . . 1 1 . . 4 . . . . . . . . . 1 . 1 2 . 1 1 Database Lockouts 1 | . . . . . . . . . . . . . . . . . 1 . . . . . . . . . . . . . . . . . . Manual 258 | . 25 2 24 . 1 . 25 . 13 . 23 . 12 . 16 16 8 . 27 . . . . 6 . . . . 6 11 9 14 . 4 16 Terminals 345 | . 19 1 23 . . . 34 4 15 5 24 4 18 4 16 31 15 . 26 . 5 . . 13 . . . 1 10 19 11 19 1 5 22 Fabricators 8 | . . . . . . . . . . . . . . . 2 . . . 6 . . . . . . . . . . . . . . . . Repair Stations 5 | . 1 . 3 . . . . . . . . . . . . . . . . . . . . . . . . . . . . . . . 1 Recycling Units 18 | . 2 . 2 . . . 2 . . . 1 . . . . . 5 . . . . . . . . . . . . . . . . . 6 Scanalyzers . | . . . . . . . . . . . . . . . . . . . . . . . . . . . . . . . . . . . . Garrison Access 14 | . . . . . . . 1 . 1 . 1 . 1 . . 1 . . 2 . . . . 4 . . . . 1 . . 2 . . . Terminal Hacks 168 | . 5 1 3 1 1 . 13 4 7 4 12 3 7 2 4 13 9 4 2 3 6 17 . 5 1 . 5 1 6 9 3 4 1 2 10 Record 18 | . . . . . . . . . . . . . . . . . 2 . . 3 5 5 . 1 . . . 1 . . . 1 . . . Part Schematic 4 | . . . . . . . . . . . . . . . . . . . . . . 4 . . . . . . . . . . . . . Robot Schematic 7 | . . . . . . . . . 1 . . . . . . . 1 . 1 . . . . 1 . . . . . 2 . 1 . . . Robot Analysis 35 | . 3 . 1 . . . . . 3 . 7 . . . 3 1 2 4 1 . . 4 . 1 . . . . 1 . . . . . 4 Prototype ID Bank 17 | . . . . . . . 2 . . . 1 . . . . 1 . . . . . 4 . . . . 4 . 3 . . . . . 2 Open Door 14 | . . 1 . 1 . . . . . 1 . 1 . 1 . 4 . . . . 1 . . . 1 . 1 . . . . . 1 . 1 Level Access Points 1 | . . . . . . . . . . . . . . . . . . . . . . . . . . . . . . 1 . . . . . Branch Access Points 5 | . . . 1 . . . . . . . . . . . . . . . . . . . . . . . . . 1 1 1 . . 1 . Emergency Access Points 3 | . . . . . . . . 1 . 1 . 1 . . . . . . . . . . . . . . . . . . . . . . . Machine Index 3 | . . . . . . . 1 . 1 . . . . . . . . . . . . . . . . . . . . 1 . . . . . Terminal Index 5 | . . . . . . . 1 . . . . . . . . 1 . . . . . . . . . . . . . 1 . 1 . . 1 Fabricator Index 1 | . . . . . . . . . . . . . . . 1 . . . . . . . . . . . . . . . . . . . . Repair Station Index 1 | . . . . . . . . . . . . . . . . . 1 . . . . . . . . . . . . . . . . . . Recycling Unit Index 1 | . 1 . . . . . . . . . . . . . . . . . . . . . . . . . . . . . . . . . . Garrison Index 1 | . . . . . . . . . . . . . 1 . . . . . . . . . . . . . . . . . . . . . . Alert Level 9 | . . . . . . . 1 . . . 1 . 1 . . 1 1 . . . . . . 1 . . . . 1 1 1 . . . . Unreport Threat 16 | . . . . . . . 5 . 2 . 2 . 4 . . 2 . . . . . . . . . . . . . . 1 . . . . Locate Traps 2 | . 1 . . . . . . . . . . . . . . . . . . . . . . . . . . . . 1 . . . . . Reprogram Traps 1 | . . . . . . . . . . . . . . . . . . . . . . . . . . . . . . 1 . . . . . Recall Investigation 2 | . . . . . . . . . . . . . 1 . . . . . . . . . . . . . . . . . . 1 . . . Recall Assault 1 | . . . . . . . . . . . . . . . . 1 . . . . . . . . . . . . . . . . . . . Hauler Manifests 7 | . . . 1 . . . 2 . . . 1 . . . . 1 1 . . . . . . 1 . . . . . . . . . . . Registered Components 2 | . . . . . . . 1 . . . . . . . . . 1 . . . . . . . . . . . . . . . . . . Registered Prototypes 1 | . . . . . . . . . . . . . . . . 1 . . . . . . . . . . . . . . . . . . . Zone Layout 1 | . . . . . . . . . . . . . . . . . . . . . . . . . . . . . . . . . . 1 . Garrison Registry 3 | . . . . . . . . 1 . 1 . . . 1 . . . . . . . . . . . . . . . . . . . . . Patrol Navigation 1 | . . . . . . . . 1 . . . . . . . . . . . . . . . . . . . . . . . . . . . Security Stations 3 | . . . . . . . . 1 . 1 . 1 . . . . . . . . . . . . . . . . . . . . . . . Derelict Proto ID Bank 1 | . . . . . 1 . . . . . . . . . . . . . . . . . . . . . . . . . . . . . . Disengage Seal 2 | . . . . . . . . . . . . . . . . . . . . . . . . . . . . . . . . . . . 2 Fabricator Hacks 6 | . . . . . . . . . . . . . . . 2 . . . 4 . . . . . . . . . . . . . . . . Load Schematic 3 | . . . . . . . . . . . . . . . 1 . . . 2 . . . . . . . . . . . . . . . . Build 3 | . . . . . . . . . . . . . . . 1 . . . 2 . . . . . . . . . . . . . . . . Repair Station Hacks . | . . . . . . . . . . . . . . . . . . . . . . . . . . . . . . . . . . . . Recycling Unit Hacks 1 | . . . . . . . . . . . . . . . . . . . . . . . . . . . . . . . . . . . 1 Retrieve Components 1 | . . . . . . . . . . . . . . . . . . . . . . . . . . . . . . . . . . . 1 Scanalyzer . | . . . . . . . . . . . . . . . . . . . . . . . . . . . . . . . . . . . . Garrison Access Hacks 7 | . . . . . . . 1 . 1 . 1 . 1 . . 1 . . 1 . . . . . . . . . 1 . . . . . . Unlock Access 4 | . . . . . . . 1 . 1 . 1 . 1 . . . . . . . . . . . . . . . . . . . . . . Seal Access 3 | . . . . . . . . . . . . . . . . 1 . . 1 . . . . . . . . . 1 . . . . . . Unauthorized Hacks 98 | . 13 1 9 . . . 8 . 2 . 9 . 6 . 3 5 6 . 9 . . . . 3 . . . . 1 6 3 7 . 1 6 Terminals 81 | . 10 1 6 . . . 6 . 2 . 8 . 6 . 3 5 1 . 8 . . . . 3 . . . . 1 6 3 7 . 1 4 Assimilate 7 | . . . 1 . . . . . . . 3 . 1 . . . . . . . . . . . . . . . . . . 1 . 1 . Botnet 58 | . 2 1 . . . . 6 . 2 . 5 . 4 . 3 5 1 . 8 . . . . 3 . . . . 1 6 3 6 . . 2 Disrupt 3 | . . . 1 . . . . . . . . . . . . . . . . . . . . . . . . . . . . . . . 2 Operators 1 | . . . . . . . . . . . . . 1 . . . . . . . . . . . . . . . . . . . . . . Sabotage 12 | . 8 . 4 . . . . . . . . . . . . . . . . . . . . . . . . . . . . . . . . Fabricators 1 | . . . . . . . . . . . . . . . . . . . 1 . . . . . . . . . . . . . . . . Prioritize 1 | . . . . . . . . . . . . . . . . . . . 1 . . . . . . . . . . . . . . . . Repair Stations 3 | . 1 . 1 . . . . . . . . . . . . . . . . . . . . . . . . . . . . . . . 1 Patch 3 | . 1 . 1 . . . . . . . . . . . . . . . . . . . . . . . . . . . . . . . 1 Recycling Units 13 | . 2 . 2 . . . 2 . . . 1 . . . . . 5 . . . . . . . . . . . . . . . . . 1 Reject 1 | . . . . . . . . . . . . . . . . . . . . . . . . . . . . . . . . . . . 1 Tunnel 12 | . 2 . 2 . . . 2 . . . 1 . . . . . 5 . . . . . . . . . . . . . . . . . . Scanalyzers . | . . . . . . . . . . . . . . . . . . . . . . . . . . . . . . . . . . . . Garrison Access . | . . . . . . . . . . . . . . . . . . . . . . . . . . . . . . . . . . . . Data Cores Recovered 9 | . . . . . . . 3 . 1 . . . 1 . . . . . 1 . . . . . . . . . . . . 1 . 1 1 Used 2 | . . . . . . . 2 . . . . . . . . . . . . . . . . . . . . . . . . . . . . Hacking Detections 95 | . 2 1 7 . . . 7 1 5 1 1 2 4 2 4 8 2 . 10 . 1 . . 4 . . . . 2 6 4 8 . 3 10 Full Trace Events 10 | . . . 3 . . . 1 . . . . . . . 1 . . . 1 . 1 . . . . . . . 1 . . . . . 2 Feedback Events . | . . . . . . . . . . . . . . . . . . . . . . . . . . . . . . . . . . . . Feedback Blocked . | . . . . . . . . . . . . . . . . . . . . . . . . . . . . . . . . . . . . Robot Schematics Acquired 20 | . . . . . . . . . 1 . . . . . . . 1 . 1 . . . . 1 . . . . . 6 . 1 9 . . Robots Built 3 | . . . . . . . . . . . . . . . 1 . . . 2 . . . . . . . . . . . . . . . . Authchips 2 | . . . . . . . . . . . . . . . . . . . 2 . . . . . . . . . . . . . . . . Time 249 | . . . . . . . . . . . . . . . 81 . . . 168 . . . . . . . . . . . . . . . . Total Robot Build Rating 13 | . . . . . . . . . . . . . . . 1 . . . 12 . . . . . . . . . . . . . . . . Part Schematics Acquired 26 | . . . . . . . . . . . . . . . . . . . . . . 4 . . . . . . . 3 . . 19 . . Parts Built . | . . . . . . . . . . . . . . . . . . . . . . . . . . . . . . . . . . . . Authchips . | . . . . . . . . . . . . . . . . . . . . . . . . . . . . . . . . . . . . Time . | . . . . . . . . . . . . . . . . . . . . . . . . . . . . . . . . . . . . Total Part Build Rating . | . . . . . . . . . . . . . . . . . . . . . . . . . . . . . . . . . . . . Parts Repaired . | . . . . . . . . . . . . . . . . . . . . . . . . . . . . . . . . . . . . Time . | . . . . . . . . . . . . . . . . . . . . . . . . . . . . . . . . . . . . Parts Recycled . | . . . . . . . . . . . . . . . . . . . . . . . . . . . . . . . . . . . . Recycled Matter . | . . . . . . . . . . . . . . . . . . . . . . . . . . . . . . . . . . . . Retrieved Matter . | . . . . . . . . . . . . . . . . . . . . . . . . . . . . . . . . . . . . Retrieved Components 3 | . . . . . . . . . . . . . . . . . . . . . . . . . . . . . . . . . . . 3 Parts Scanalyzed . | . . . . . . . . . . . . . . . . . . . . . . . . . . . . . . . . . . . . Part Schematics Acquired . | . . . . . . . . . . . . . . . . . . . . . . . . . . . . . . . . . . . . Parts Damaged . | . . . . . . . . . . . . . . . . . . . . . . . . . . . . . . . . . . . . Bothacking | -11 -10 -10 -9 -9 -9 -8 -8 -8 -8 -8 -8 -8 -8 -8 -7 -7 -7 -7 -5 -5 -5 -5 -4 -4 -4 -4 -4 -3 -3 -3 -2 -2 -2 -1 -1 ------------ Run | Yrd Mat Min Mat Min Exi Min Mat Gar Mat Gar Mat Gar Mat Gar Fac Sto Rec Scr Fac Upp Upp Zhi Pro Fac Upp Upp War Pro Res Tes Res Qua Sec Acc Com Used RIF Installer . | . . . . . . . . . . . . . . . . . . . . . . . . . . . . . . . . . . . . Robots Hacked 12 | . . . . . . . . . . . . . . . . . 2 1 . . . . 1 . . . . . . . . . 1 . 7 Non-combat 5 | . . . . . . . . . . . . . . . . . 2 1 . . . . 1 . . . . . . . . . . . 1 Combat 7 | . . . . . . . . . . . . . . . . . . . . . . . . . . . . . . . . . 1 . 6 Robot Hacks Applied 12 | . . . . . . . . . . . . . . . . . 2 1 . . . . 1 . . . . . . . . . 1 . 7 parse_system 11 | . . . . . . . . . . . . . . . . . 1 1 . . . . 1 . . . . . . . . . 1 . 7 no_distress 1 | . . . . . . . . . . . . . . . . . 1 . . . . . . . . . . . . . . . . . . Relay Couplers Released 37 | . . . . . . . . 11 . 14 . 9 . . . 2 . . . . . . . 1 . . . . . . . . . . . Machine Destruction 35 | . . . . . . . . 11 . 14 . 9 . . . . . . . . . . . 1 . . . . . . . . . . . Programmers 2 | . . . . . . . . . . . . . . . . 2 . . . . . . . . . . . . . . . . . . . Fabnet Peak Effective % . | . . . . . . . . . . . . . . . . . . . . . . . . . . . . . . . . . . . . Robots Rewired 230 | . . . . . . . . 3 . 3 . . . 2 . . 13 . . 2 . . 1 1 2 2 5 . . . . 1 14 . 181 Allies Hacked 2 | . . . . . . . . . . . . . . . . . . . . . . . . . . . . . . . . . . . 2 Hacks Repelled . | . . . . . . . . . . . . . . . . . . . . . . . . . . . . . . . . . . . . Allies | -11 -10 -10 -9 -9 -9 -8 -8 -8 -8 -8 -8 -8 -8 -8 -7 -7 -7 -7 -5 -5 -5 -5 -4 -4 -4 -4 -4 -3 -3 -3 -2 -2 -2 -1 -1 -------- Run | Yrd Mat Min Mat Min Exi Min Mat Gar Mat Gar Mat Gar Mat Gar Fac Sto Rec Scr Fac Upp Upp Zhi Pro Fac Upp Upp War Pro Res Tes Res Qua Sec Acc Com Total Allies 252 | . . . 1 4 . . . 3 . 3 2 1 . 2 1 10 13 . 2 2 . . 1 1 2 2 5 . . . . 1 14 1 181 Largest Group 107 | . . . 1 5 5 1 1 3 . 3 5 5 5 5 5 14 27 27 23 11 10 6 6 5 5 7 7 5 5 . . 1 4 1 107 Highest-Rated Group 6647 | . . . 10 80 80 9 9 48 . 95 131 152 152 143 143 256 490 490 500 249 218 151 180 153 224 320 320 268 268 . . 58 406 45 6647 Highest-Rated Ally 219 | . . . 10 31 31 9 9 16 . 39 39 39 39 39 39 31 40 40 54 40 40 39 48 65 65 65 65 65 65 . . 58 210 45 219 Total Orders 394 | . . . 4 1 38 . . . . . 3 5 1 5 5 8 15 62 12 . 2 . 1 5 . 5 2 . 1 . . 3 8 . 208 STAY 228 | . . . 2 1 15 . . . . . 2 2 1 3 3 4 8 30 6 . 2 . 1 5 . 2 1 . 1 . . 2 5 . 132 ROAM 2 | . . . . . 1 . . . . . . . . . . . . . . . . . . . . . . . . . . . 1 . . FOLLOW 128 | . . . 2 . 3 . . . . . 1 3 . 2 2 4 6 27 5 . . . . . . 3 1 . . . . 1 2 . 66 GUARD 2 | . . . . . . . . . . . . . . . . . . . . . . . . . . . . . . . . . . . 2 AID 8 | . . . . . . . . . . . . . . . . . . . . . . . . . . . . . . . . . . . 8 DROP 2 | . . . . . . . . . . . . . . . . . . 1 1 . . . . . . . . . . . . . . . . PICKUP 4 | . . . . . . . . . . . . . . . . . . 4 . . . . . . . . . . . . . . . . . COLLECT 1 | . . . . . . . . . . . . . . . . . 1 . . . . . . . . . . . . . . . . . . RETURN 19 | . . . . . 19 . . . . . . . . . . . . . . . . . . . . . . . . . . . . . . Ally Attacks 1081 | . . . . 5 105 . . . . . 6 . 1 15 2 . 7 215 69 2 22 . 49 . 18 . 27 . . . . 1 73 . 464 Total Damage 29598 | . . . . 86 421 . . . . . 100 . . 213 639 . 110 3003 855 17 259 . 829 . 329 . 818 . . . . 19 3325 . 18575 Kills 150 | . . . . 1 6 . . . . . 2 . . 4 3 . . 36 9 1 2 . 3 . 1 . 8 . . . . . 9 . 65 Allies Corrupted 12 | . . . . . . . . . . . . . . . . . . . . . . . . . . . . . . . . . . . 12 Allies Melted . | . . . . . . . . . . . . . . . . . . . . . . . . . . . . . . . . . . . . Intel | -11 -10 -10 -9 -9 -9 -8 -8 -8 -8 -8 -8 -8 -8 -8 -7 -7 -7 -7 -5 -5 -5 -5 -4 -4 -4 -4 -4 -3 -3 -3 -2 -2 -2 -1 -1 ------- Run | Yrd Mat Min Mat Min Exi Min Mat Gar Mat Gar Mat Gar Mat Gar Fac Sto Rec Scr Fac Upp Upp Zhi Pro Fac Upp Upp War Pro Res Tes Res Qua Sec Acc Com Robot Analysis Total 33 | . 3 . 1 . . . . . 3 . 6 . . . 3 1 2 4 1 . . 4 . 1 . . . . 1 . . . . . 3 Derelict Logs Recovered 11 | . . 1 . 2 . . . . . . . . . . . . . . . 1 2 . 2 . 1 2 . . . . . . . . . Drone Launches 27 | . . . . . 27 . . . . . . . . . . . . . . . . . . . . . . . . . . . . . . Drone Recoveries 20 | . . . . . 20 . . . . . . . . . . . . . . . . . . . . . . . . . . . . . . Decoded 0b10 Intel 52 | . . . . . . . . . . . . . . . . . . . . . . . . . . . . . 5 14 4 7 22 . . Traps 32 | . . . . . . . . . . . . . . . . . . . . . . . . . . . . . 5 9 4 2 12 . . Emergency Access 19 | . . . . . . . . . . . . . . . . . . . . . . . . . . . . . . 5 . 4 10 . . Garrisons 1 | . . . . . . . . . . . . . . . . . . . . . . . . . . . . . . . . 1 . . . Exploration | -11 -10 -10 -9 -9 -9 -8 -8 -8 -8 -8 -8 -8 -8 -8 -7 -7 -7 -7 -5 -5 -5 -5 -4 -4 -4 -4 -4 -3 -3 -3 -2 -2 -2 -1 -1 ------------- Run | Yrd Mat Min Mat Min Exi Min Mat Gar Mat Gar Mat Gar Mat Gar Fac Sto Rec Scr Fac Upp Upp Zhi Pro Fac Upp Upp War Pro Res Tes Res Qua Sec Acc Com Turns Passed 52939 | 62 1044 351 1159 324 2515 162 718 597 319 393 377 637 281 327 598 998 1248 4040 1786 660 584 89 530 899 535 719 2936 412 325 680 185 466 2273 288 23422 Spaces Moved 71050 | 48 1311 537 1864 602 1606 440 1588 995 733 403 820 1035 403 393 859 1212 1489 4008 2399 1195 1292 150 985 1639 980 1231 2679 784 800 1414 303 962 2240 495 31156 Core 45 | 1 . . . . 3 . . . . . . . . . . . . . . . . . . . . . . . . . . . 41 . . Treads 806 | . . . . . 806 . . . . . . . . . . . . . . . . . . . . . . . . . . . . . . Legs 144 | . . . . . 144 . . . . . . . . . . . . . . . . . . . . . . . . . . . . . . Wheels 309 | 47 262 . . . . . . . . . . . . . . . . . . . . . . . . . . . . . . . . . . Hover 58354 | . . . . . . . . . . . . . . 123 859 1212 1489 4008 2399 1195 1292 150 985 1639 980 1231 2679 784 800 1414 303 962 2199 495 31156 Flight 11392 | . 1049 537 1864 602 653 440 1588 995 733 403 820 1035 403 270 . . . . . . . . . . . . . . . . . . . . . Fastest Speed 28 | 50 34 32 30 30 30 30 29 29 29 29 29 29 29 29 52 52 48 52 35 35 35 35 35 35 35 35 33 33 33 33 33 28 28 33 28 Average Speed 39 | 92 45 32 30 35 131 30 29 29 29 29 29 29 29 36 52 52 51 52 44 35 35 35 35 35 35 35 34 33 33 33 33 29 33 33 37 Slowest Speed 240 | 100 90 34 32 110 240 30 30 29 29 29 29 29 29 60 52 52 52 108 52 35 35 35 35 35 35 35 35 33 33 33 33 33 150 33 110 Overloaded Moves 118 | . . . . . . . . . . . . . . . . . . . . . . . . . . . . . . . . . . . 118 Propulsion Burnouts . | . . . . . . . . . . . . . . . . . . . . . . . . . . . . . . . . . . . . Robots Hopped 84 | . 9 4 12 4 3 3 24 1 11 . 12 . 1 . . . . . . . . . . . . . . . . . . . . . . Cave-ins Triggered 2 | . . . . . . . . . . . . . . . . . . . . . . . . . . . . . . . . . . 1 1 Teleports 1406 | . . . . . . . . . . . . . . . . . . . . . . . . . . . . . . . . . 99 19 1288 Exploration Rate (%) 68 | 4 94 94 94 83 82 89 87 76 62 67 51 84 28 41 13 86 99 94 27 98 98 60 96 19 97 95 97 93 19 94 10 87 65 16 82 Regions Visited 35 Branch Regions 19 Pre-discovered Areas 16 | . 2 . 2 . . . 2 . . . 1 . . . . . 5 . . 1 . 3 . . . . . . . . . . . . . Known Exits Taken 25 | . . . 1 . . . 1 . 1 . 1 . 1 . 1 1 1 1 1 1 1 1 1 1 1 1 1 1 1 1 1 1 1 1 . Unknown Exits Taken 6 | 1 1 1 . 1 1 1 . . . . . . . . . . . . . . . . . . . . . . . . . . . . . Scrap Searched 28 | . . 2 . 1 . 1 . . . . . . . . . . . 5 . 3 4 . 5 . 2 3 . 2 . . . . . . . Spaces Dug 510 | . . . 1 . . . . 29 . . . 3 2 . . 4 6 20 6 . . . 17 2 19 29 46 . 37 47 24 24 49 46 99 Terrain Destroyed 2094 | . . . 1 . 26 2 95 46 26 21 22 37 13 6 2 31 34 68 65 11 12 . 36 59 31 35 229 8 37 67 27 31 117 53 846 Melee 1 | . . . 1 . . . . . . . . . . . . . . . . . . . . . . . . . . . . . . . . Projectile 675 | . . . . . 2 2 47 39 25 17 21 28 10 5 1 25 32 59 17 1 4 . 12 10 7 4 122 3 . 10 2 2 16 2 150 AOE 772 | . . . . . 24 . 46 . . . . . . . . . . . 41 . . . . 37 . . . . . 6 . . 34 . 584 Terrain Rammed . | . . . . . . . . . . . . . . . . . . . . . . . . . . . . . . . . . . . . Walls Destroyed . | . . . . . . . . . . . . . . . . . . . . . . . . . . . . . . . . . . . . Machines Disabled . | . . . . . . . . . . . . . . . . . . . . . . . . . . . . . . . . . . . . Actions | -11 -10 -10 -9 -9 -9 -8 -8 -8 -8 -8 -8 -8 -8 -8 -7 -7 -7 -7 -5 -5 -5 -5 -4 -4 -4 -4 -4 -3 -3 -3 -2 -2 -2 -1 -1 --------- Run | Yrd Mat Min Mat Min Exi Min Mat Gar Mat Gar Mat Gar Mat Gar Fac Sto Rec Scr Fac Upp Upp Zhi Pro Fac Upp Upp War Pro Res Tes Res Qua Sec Acc Com Total 90376 | 58 1556 674 2203 676 1915 460 1707 1197 781 590 901 1259 534 507 981 1478 1920 5550 2991 1391 1368 184 1098 1862 1102 1460 3852 904 850 1556 377 1093 3437 558 41346 Wait 12103 | 2 118 113 160 54 129 6 13 50 12 56 51 80 102 22 81 141 355 1107 411 112 16 26 26 106 45 157 311 41 36 46 67 62 524 . 7465 Move 70846 | 47 1292 528 1840 593 1599 433 1541 991 710 402 795 1034 400 392 858 1211 1488 4007 2398 1194 1291 149 984 1638 979 1230 2678 783 799 1413 302 961 2239 493 31154 Hop 81 | . 9 4 11 4 3 3 22 1 11 . 12 . 1 . . . . . . . . . . . . . . . . . . . . . . Pick Up 64 | . 3 . 4 1 21 . . 2 . . . . . 2 1 . . 11 4 . . . . . . . 2 . . 2 . 1 3 . 7 Fast Attach 101 | 7 3 2 1 1 22 . 1 . 1 . . . . 1 . 3 . 1 6 . 1 3 1 3 . . 7 . . . . 3 17 . 17 Attach 18 | . . . . . 3 . . . . . . . . 1 . . 2 . 2 1 . . . . . . . . . . . 2 1 . 6 Detach 9 | . . . . . 1 . . . . . . . . . . . 1 . 1 1 . . . . . . . . . . . . . . 5 Swap 381 | . 2 1 15 . 20 . 4 . 1 . 2 . . 12 . 2 5 13 9 . . 3 4 6 1 2 17 . 9 25 . 8 43 . 177 Drop 129 | . . 1 9 2 49 . 1 2 1 . . . . 7 . 3 3 11 5 . 1 3 . 3 . . 6 . 1 3 . . 6 . 12 Fire 4368 | 2 97 17 54 17 59 5 88 84 37 70 35 89 30 55 23 80 35 246 101 36 44 . 55 80 55 44 663 26 5 51 8 31 339 48 1659 Melee 93 | . . . 69 . . . . . . . . . . . . . 22 1 . . . . 1 . . . . . . . . . . . . Ram . | . . . . . . . . . . . . . . . . . . . . . . . . . . . . . . . . . . . . Kick . | . . . . . . . . . . . . . . . . . . . . . . . . . . . . . . . . . . . . Crush . | . . . . . . . . . . . . . . . . . . . . . . . . . . . . . . . . . . . . Escape Stasis 248 | . . . . . . . . 45 . 35 . 36 . . . . . . . . . . . . . . . . . . . 13 . 1 118 Rewire 201 | . . . . . 3 . . 14 . 16 . . . 3 . . 4 1 . 8 1 . 5 5 9 18 19 1 . . . 2 87 . 5 Trap 2 | . . . . . . . . . . . . . . . . 2 . . . . . . . . . . . . . . . . . . . Miscellaneous 1732 | . 32 8 40 4 6 13 37 8 8 11 6 20 1 12 18 36 5 152 54 39 14 . 22 21 13 9 149 53 . 16 . 10 178 16 721 Route ------- -11/Scrapyard -10/Materials (discovered 6 exits: *Mat x3 / *Min x2 / [Sub]) -10/Mines (discovered 3 exits: *Mat x2 / [Sub]) -9/Materials (discovered 4 exits: *Mat x3 / *Min) -9/Mines (discovered 2 exits: *Mat / *Exi) -9/Exiles -8/Mines (discovered 2 exits: *Mat x2) -8/Materials (discovered 4 exits: *Fac x3 / Gar) -8/Garrison (discovered 3 exits: *Mat x3) -8/Materials (discovered 3 exits: *Fac x2 / Gar) -8/Garrison (discovered 3 exits: *Mat x3) -8/Materials (discovered 2 exits: *Fac / Gar) -8/Garrison (discovered 3 exits: *Mat x3) -8/Materials (discovered 2 exits: *Fac / Gar) -8/Garrison (discovered 3 exits: *Fac x3) -7/Factory -7/Storage (discovered 2 exits: [*Fac] / *Rec) -7/Recycling (discovered 2 exits: *Fac / *Scr) -7/Scraptown (discovered 2 exits: *Fac x2) -5/Factory (discovered 5 exits: *Fac x2 / *Upp x2 / *Ext) -5/Upper Caves -5/Upper Caves (discovered 2 exits: *Fac / *Zhi) -5/Zhirov -4/Proximity Caves -4/Factory (discovered 4 exits: *Res x3 / *Upp) -4/Upper Caves -4/Upper Caves (discovered 2 exits: *Res / *War) -4/Warlord -3/Proximity Caves -3/Research (discovered 3 exits: *Arm / *Tes x2) -3/Testing -2/Research (discovered 2 exits: *Qua x2) -2/Quarantine (discovered 2 exits: *Acc / *Sec) -2/Section 7 -1/Access -1/Command (discovered 2 exits: *Sur x2) 0b11 Command History --------- Turn | Location | Event 1 | -11/Scrapyard | Upgraded with Power slot (x1) 1 | -11/Scrapyard | Upgraded with Propulsion slot (x1) 1 | -11/Scrapyard | Upgraded with Utility slot (x1) 1 | -11/Scrapyard | Upgraded with Weapon slot (x1) 22 | -11/Scrapyard | Discovered new exit (range 15) 63 | -11/Scrapyard | Entered Materials 162 | -10/Materials | Discovered new exit (range 15) 316 | -10/Materials | Build established: Mutant 328 | -10/Materials | Discovered new exit (range 15) 372 | -10/Materials | Upgraded with Propulsion slot (x1) 399 | -10/Materials | Discovered new exit (range 15) 408 | -10/Materials | Reached level 2 556 | -10/Materials | Destroyed 8 combat bots 560 | -10/Materials | Discovered new exit (range 16) 618 | -10/Materials | Discovered new exit (range 9) 645 | -10/Materials | Reached level 3 665 | -10/Materials | Build established: Scavenger-Mutant 837 | -10/Materials | Discovered new exit (range 15) 855 | -10/Materials | Reached level 4 1034 | -10/Materials | Upgraded with Utility slot (x1) 1107 | -10/Materials | Entered Mines 1109 | -10/Mines | Reached level 5 1115 | -10/Mines | Received a Rocket Launcher from a helpful Derelict 1159 | -10/Mines | Discovered new exit (range 6) 1164 | -10/Mines | Met a Derelict who couldn't figure out how to use a Trap Extractor 1166 | -10/Mines | Upgraded with Utility slot (x2) 1253 | -10/Mines | Assembled infested the area 1258 | -10/Mines | Assisted by a Guerilla fighting off Assembled 1261 | -10/Mines | Discovered new exit (range 12) 1280 | -10/Mines | Discovered new exit (range 13) 1458 | -10/Mines | Entered Materials 1460 | -9/Materials | Reached level 6 1536 | -9/Materials | Build established: Scout 1537 | -9/Materials | Reached level 7 1558 | -9/Materials | Discovered new exit (range 5) 1698 | -9/Materials | Destroyed 7 combat bots 1710 | -9/Materials | Discovered new exit (range 13) 1806 | -9/Materials | Reached level 8 1957 | -9/Materials | Discovered new exit (range 13) 2010 | -9/Materials | Identified exit to Mines 2066 | -9/Materials | Upgraded with Utility slot (x1) 2078 | -9/Materials | Reached level 9 2249 | -9/Materials | Discovered new exit (range 4) 2372 | -9/Materials | Build established: Scavenger-Scout 2544 | -9/Materials | Reached level 10 2575 | -9/Materials | Sterilization system engaged 2575 | -9/Materials | Non-combat units ordered to evacuate 2617 | -9/Materials | Entered Mines 2617 | -9/Mines | Accompanied by 1 ally 2623 | -9/Mines | Met a Derelict bent on vengeance 2649 | -9/Mines | Received a Mining Laser from a helpful Derelict 2730 | -9/Mines | Build established: Scout 2730 | -9/Mines | Learned Materials trap positions 2771 | -9/Mines | Discovered new exit (range 9) 2797 | -9/Mines | Discovered new exit (range 10) 2812 | -9/Mines | Deemed a non-threat by the Exiles lab entrance 2822 | -9/Mines | Met a Derelict shopkeep closing up shop 2830 | -9/Mines | Upgraded with Weapon slot (x1) 2894 | -9/Mines | Assisted by bots powering up and referring to "LRC-V3" 2941 | -9/Mines | Entered Exiles 2941 | -9/Exiles | Accompanied by 5 allies 2949 | -9/Exiles | Met 8R-AWN 2954 | -9/Exiles | Met EX-HEX 2962 | -9/Exiles | Met EX-BIN 2966 | -9/Exiles | Aligned with FarCom system 2966 | -9/Exiles | Given EX-Vault access code 2973 | -9/Exiles | Opened EX-Vault 3009 | -9/Exiles | Warned to stay clear of 0b10 Research branches 3054 | -9/Exiles | Met EX-DEC 3143 | -9/Exiles | Discovered new exit (range 10) 3329 | -9/Exiles | Found Army-in-a-Box 3347 | -9/Exiles | Found Deploy-a-Sentry 3352 | -9/Exiles | Found Deploy-a-Sentry 3355 | -9/Exiles | Found Deploy-a-Sentry 3503 | -9/Exiles | Build established: Commander-Mutant 4754 | -9/Exiles | Attacked by the Exiles 4926 | -9/Exiles | Core integrity fell below 50% 4929 | -9/Exiles | Destroyed 8R-AWN 4947 | -9/Exiles | Lost 9 allies 4947 | -9/Exiles | Found Prototype Ballistic Gun 4947 | -9/Exiles | Identified 8R-AWN's Boregun 4955 | -9/Exiles | Found Corrupted 8R-AWN's Boregun 4957 | -9/Exiles | Found Prototype Device 4957 | -9/Exiles | Identified AS-neutralizer No. 17b 4968 | -9/Exiles | Found Prototype Protection 4968 | -9/Exiles | Identified 8R-AWN's Armor/EX 5234 | -9/Exiles | Destroyed EX-HEX 5235 | -9/Exiles | Destroyed EX-BIN 5238 | -9/Exiles | Found Prototype Device 5239 | -9/Exiles | Identified System Purifier 5337 | -9/Exiles | Destroyed EX-DEC 5348 | -9/Exiles | Found Prototype Processor 5348 | -9/Exiles | Identified Exp. Core Analyzer 5395 | -9/Exiles | Upgraded with Utility slot (x1) 5456 | -9/Exiles | Entered Mines 5456 | -8/Mines | Accompanied by 1 ally 5484 | -8/Mines | Build established: Scavenger-Sprinter 5502 | -8/Mines | Discovered new exit (range 14) 5525 | -8/Mines | Discovered new exit (range 16) 5538 | -8/Mines | Reached level 11 5618 | -8/Mines | Entered Materials 5618 | -8/Materials | Accompanied by 1 ally 5619 | -8/Materials | Identified exit to Factory 5620 | -8/Materials | Loaded intel: 10 trap records 5670 | -8/Materials | Reached level 12 5743 | -8/Materials | Destroyed 9 combat bots 5746 | -8/Materials | Discovered exit to Factory (range 5) 5858 | -8/Materials | Upgraded with Utility slot (x1) 6042 | -8/Materials | Reached level 13 6170 | -8/Materials | Discovered exit to Factory (range 9) 6336 | -8/Materials | Identified exit to Garrison 6336 | -8/Materials | Entered Garrison 6368 | -8/Garrison | Triggered checkpoint 6436 | -8/Garrison | Triggered checkpoint 6470 | -8/Garrison | Triggered checkpoint 6470 | -8/Garrison | Destroyed 17 combat bots 6495 | -8/Garrison | Discovered new exit (range 10) 6498 | -8/Garrison | Identified exit to Materials 6567 | -8/Garrison | Garrison Relay disabled 6572 | -8/Garrison | Triggered checkpoint 6575 | -8/Garrison | Learned Materials security intel 6611 | -8/Garrison | Discovered exit to Materials (range 11) 6635 | -8/Garrison | Garrison Relay disabled 6635 | -8/Garrison | Reached level 14 6638 | -8/Garrison | Triggered checkpoint 6647 | -8/Garrison | Discovered exit to Materials (range 12) 6647 | -8/Garrison | Discovered exit to Materials (range 53) 6647 | -8/Garrison | Discovered exit to Materials (range 84) 6690 | -8/Garrison | Triggered checkpoint 6716 | -8/Garrison | Triggered checkpoint 6840 | -8/Garrison | Attempted to access garrison exit controls, blocked by remote lockdown 6854 | -8/Garrison | Triggered checkpoint 6872 | -8/Garrison | Garrison Relay disabled 6933 | -8/Garrison | Entered Materials 7118 | -8/Materials | Discovered exit to Factory (range 16) 7247 | -8/Materials | Discovered exit to Factory (range 16) 7252 | -8/Materials | Identified exit to Garrison 7252 | -8/Materials | Entered Garrison 7270 | -8/Garrison | Garrison Relay disabled 7278 | -8/Garrison | Triggered checkpoint 7369 | -8/Garrison | Destroyed 10 combat bots 7378 | -8/Garrison | Discovered new exit (range 66) 7378 | -8/Garrison | Discovered new exit (range 26) 7378 | -8/Garrison | Discovered new exit (range 50) 7382 | -8/Garrison | Triggered checkpoint 7398 | -8/Garrison | Identified exit to Materials 7457 | -8/Garrison | Reached level 15 7482 | -8/Garrison | Garrison Relay disabled 7482 | -8/Garrison | Garrison Relay disabled 7484 | -8/Garrison | Garrison Relay disabled 7499 | -8/Garrison | Destroyed 8 combat bots 7529 | -8/Garrison | Learned Materials security intel 7532 | -8/Garrison | Triggered checkpoint 7645 | -8/Garrison | Entered Materials 7645 | -8/Materials | Accompanied by 3 allies 7896 | -8/Materials | Discovered exit to Factory (range 7) 8000 | -8/Materials | Identified exit to Garrison 8022 | -8/Materials | Entered Garrison 8022 | -8/Garrison | Accompanied by 5 allies 8026 | -8/Garrison | Triggered checkpoint 8043 | -8/Garrison | Discovered new exit (range 3) 8054 | -8/Garrison | Triggered checkpoint 8101 | -8/Garrison | Learned Materials security intel 8105 | -8/Garrison | Garrison Relay disabled 8109 | -8/Garrison | Garrison Relay disabled 8144 | -8/Garrison | Triggered checkpoint 8153 | -8/Garrison | Triggered checkpoint 8160 | -8/Garrison | Triggered checkpoint 8295 | -8/Garrison | Discovered new exit (range 10) 8298 | -8/Garrison | Identified exit to Materials 8324 | -8/Garrison | Triggered checkpoint 8348 | -8/Garrison | Triggered checkpoint 8410 | -8/Garrison | Discovered exit to Materials (range 15) 8421 | -8/Garrison | Triggered checkpoint 8433 | -8/Garrison | Garrison Relay disabled 8473 | -8/Garrison | Destroyed 7 combat bots 8514 | -8/Garrison | Garrison Relay disabled 8514 | -8/Garrison | Reached level 16 8516 | -8/Garrison | Triggered checkpoint 8534 | -8/Garrison | Rescued a captive Derelict 8659 | -8/Garrison | Entered Materials 8659 | -8/Materials | Accompanied by 5 allies 8680 | -8/Materials | Identified exit to Garrison 8774 | -8/Materials | Discovered exit to Factory (range 10) 8870 | -8/Materials | Garrison activated, responded to threat 8940 | -8/Materials | Entered Garrison 8940 | -8/Garrison | Accompanied by 4 allies 8952 | -8/Garrison | Triggered checkpoint 8968 | -8/Garrison | Discovered exit to Factory (range 43) 8968 | -8/Garrison | Discovered exit to Factory (range 53) 8968 | -8/Garrison | Discovered exit to Factory (range 65) 8985 | -8/Garrison | Triggered checkpoint 9014 | -8/Garrison | Triggered checkpoint 9021 | -8/Garrison | Triggered checkpoint 9051 | -8/Garrison | Triggered checkpoint 9083 | -8/Garrison | Upgraded with Utility slot (x1) 9111 | -8/Garrison | Destroyed 19 combat bots 9128 | -8/Garrison | Spotted B-75 Beast 9160 | -8/Garrison | Allies destroyed B-75 Beast 9267 | -8/Garrison | Entered Factory 9267 | -7/Factory | Accompanied by 5 allies 9268 | -7/Factory | Identified exit to Storage 9477 | -7/Factory | Build established: Scavenger-Mutant 9708 | -7/Factory | Reached level 17 9773 | -7/Factory | Fabricated A-02 Transporter (x1) 9865 | -7/Factory | Entered Storage 9865 | -7/Storage | Accompanied by 5 allies 10090 | -7/Storage | Destroyed 12 combat bots 10265 | -7/Storage | First assault squad dispatched 10337 | -7/Storage | Discovered new exit (range 16) 10536 | -7/Storage | Garrison activated, responded to threat 10576 | -7/Storage | Met 01-MTF 10673 | -7/Storage | Assisted by bots powering up and referring to "LRC-V3" 10819 | -7/Storage | Used back door to open Recycling access 10819 | -7/Storage | Discovered new exit (range 5) 10820 | -7/Storage | Identified exit to Recycling 10863 | -7/Storage | Entered Recycling 10863 | -7/Recycling | Accompanied by 15 allies (01-MTF) 10868 | -7/Recycling | Reached level 18 10914 | -7/Recycling | Upgraded with Utility slot (x1) 10974 | -7/Recycling | Build established: Commander-Mutant 11198 | -7/Recycling | Discovered new exit (range 15) 11231 | -7/Recycling | Scanned before Scraplab entrance 11241 | -7/Recycling | Murdered 01-MTF 11252 | -7/Recycling | Entered Scraplab 11256 | -7/Recycling | Discovered new exit (range 3) 11256 | -7/Recycling | Identified exit to Scraptown 12111 | -7/Recycling | Entered Scraptown 12111 | -7/Scraptown | Accompanied by 27 allies 12212 | -7/Scraptown | Discovered new exit (range 13) 12226 | -7/Scraptown | Visited Fellowship of the Rings 12237 | -7/Scraptown | Visited Assassins FH 12326 | -7/Scraptown | Visited Symbiants 12335 | -7/Scraptown | Visited SPCMW 12412 | -7/Scraptown | Visited Cyclists 12416 | -7/Scraptown | Visited Awakened 12421 | -7/Scraptown | Visited The Evicted 12803 | -7/Scraptown | Attacked by Scraptown defenders 12803 | -7/Scraptown | Allies destroyed Triborg 12868 | -7/Scraptown | Destroyed 10 combat bots 12931 | -7/Scraptown | Destroyed 8 combat bots 13370 | -7/Scraptown | Destroyed 10 combat bots 13463 | -7/Scraptown | Destroyed 11 combat bots 13581 | -7/Scraptown | Entered Cyclist Reading Room 13825 | -7/Scraptown | Destroyed 19 combat bots 13918 | -7/Scraptown | Build established: Commander-Gunner 13999 | -7/Scraptown | Destroyed 19 combat bots 14042 | -7/Scraptown | Visited Infowarlord's Domain 14046 | -7/Scraptown | Found Exp. Signal Interpreter 14065 | -7/Scraptown | Visited Scrap Suit Storage 14073 | -7/Scraptown | Visited Junk Repository 14079 | -7/Scraptown | Visited Cartography Club 14154 | -7/Scraptown | Visited Analyses Database 14173 | -7/Scraptown | Visited Curators Association 14180 | -7/Scraptown | Found Prototype Reactor 14180 | -7/Scraptown | Identified MA-1KR's Cyclogen 14196 | -7/Scraptown | Visited Chapter 10 14238 | -7/Scraptown | Visited LU-1G1's Boring Crew 14282 | -7/Scraptown | Found Prototype Special Weapon 14282 | -7/Scraptown | Identified LU-1G1's Laser Shovel 14338 | -7/Scraptown | Visited Science Guys 14368 | -7/Scraptown | Found Prototype Special Weapon 14368 | -7/Scraptown | Identified Voltaic Drivehammer 14960 | -7/Scraptown | Discovered new exit (range 5) 14967 | -7/Scraptown | Identified exit to Factory 15068 | -7/Scraptown | System corruption cleaned by C-Scrubber 16151 | -7/Scraptown | Entered Factory 16151 | -5/Factory | Accompanied by 21 allies 16153 | -5/Factory | Reached level 19 16348 | -5/Factory | Discovered new exit (range 13) 16365 | -5/Factory | Identified exit to Factory 16697 | -5/Factory | Garrison activated, responded to threat 16818 | -5/Factory | Reached level 20 16889 | -5/Factory | Discovered new exit (range 12) 16894 | -5/Factory | Identified exit to Extension 16911 | -5/Factory | Discovered new exit (range 15) 16918 | -5/Factory | Identified exit to Upper Caves 16952 | -5/Factory | Discovered exit to Factory (range 10) 16970 | -5/Factory | Core integrity fell below 50% 17062 | -5/Factory | Cargo convoy interrupted 17226 | -5/Factory | Discovered exit to Upper Caves (range 8) 17405 | -5/Factory | Core integrity fell below 20% 17553 | -5/Factory | Fabricated P-70 Sage? 17594 | -5/Factory | Reached level 21 17811 | -5/Factory | Lost 12 allies 17937 | -5/Factory | Entered Upper Caves 17937 | -5/Upper Caves | Accompanied by 9 allies 17991 | -5/Upper Caves | Reached level 22 18016 | -5/Upper Caves | Attracted the attention of an 0b10 outpost 18038 | -5/Upper Caves | Destroyed 8 combat bots 18114 | -5/Upper Caves | Learned Research stockpile data 18114 | -5/Upper Caves | Learned Research garrison access intel 18132 | -5/Upper Caves | Ambushed by wild Derelicts 18174 | -5/Upper Caves | Encountered a Warlord checkpoint 18193 | -5/Upper Caves | Identified exit to Upper Caves 18207 | -5/Upper Caves | Attracted the attention of an 0b10 checkpoint 18228 | -5/Upper Caves | Upgraded with Utility slot (x1) 18597 | -5/Upper Caves | Entered another Upper Caves area 18597 | -5/Upper Caves | Accompanied by 11 allies 18618 | -5/Upper Caves | Discovered exit to Factory (range 15) 18674 | -5/Upper Caves | Attracted the attention of an 0b10 base 18704 | -5/Upper Caves | Identified exit to Zhirov 18704 | -5/Upper Caves | Learned location of 1 exit from Upper Caves 18704 | -5/Upper Caves | Learned location of 1 exit from Factory 18704 | -5/Upper Caves | Learned 6 Proximity Caves zone layouts 18714 | -5/Upper Caves | Reached level 23 18737 | -5/Upper Caves | Destroyed 9 combat bots 18799 | -5/Upper Caves | Learned Factory trap positions 18811 | -5/Upper Caves | Encountered a Warlord checkpoint 18896 | -5/Upper Caves | Build established: Scavenger-Gunner 19181 | -5/Upper Caves | Entered Zhirov 19181 | -5/Zhirov | Accompanied by 6 allies 19181 | -5/Zhirov | Discovered new exit (range 3) 19192 | -5/Zhirov | Met Zhirov 19201 | -5/Zhirov | Zhirov requested help retrieving the SGEMP Prototype 19207 | -5/Zhirov | Found Alien Artifact 19207 | -5/Zhirov | Identified Integrated Dissipator 19207 | -5/Zhirov | Installed Integrated Dissipator, increased core heat dissipation (+20) 19243 | -5/Zhirov | Identified exit to Proximity Caves 19270 | -5/Zhirov | Entered Proximity Caves 19270 | -4/Proximity Caves | Accompanied by 6 allies 19319 | -4/Proximity Caves | Reached level 24 19327 | -4/Proximity Caves | Attracted the attention of an 0b10 outpost 19460 | -4/Proximity Caves | Destroyed 8 combat bots 19510 | -4/Proximity Caves | Learned location of 1 exit from Research 19531 | -4/Proximity Caves | Reached level 25 19582 | -4/Proximity Caves | Destroyed 7 combat bots 19593 | -4/Proximity Caves | Discovered exit to Factory (range 8) 19593 | -4/Proximity Caves | Learned Research terminal intel 19800 | -4/Proximity Caves | Entered Factory 19800 | -4/Factory | Accompanied by 5 allies 19801 | -4/Factory | Identified exit to Upper Caves 19802 | -4/Factory | Identified exit to Research 19803 | -4/Factory | Loaded intel: 102 trap records 19880 | -4/Factory | Upgraded with Power slot (x1) 19880 | -4/Factory | Upgraded with Propulsion slot (x1) 19935 | -4/Factory | Discovered exit to Research (range 15) 20050 | -4/Factory | First assault squad dispatched 20079 | -4/Factory | Discovered exit to Research (range 4) 20191 | -4/Factory | Reached level 26 20367 | -4/Factory | Destroyed 11 combat bots 20390 | -4/Factory | Upgraded with Utility slot (x1) 20555 | -4/Factory | Cargo convoy interrupted 20597 | -4/Factory | Destroyed 11 combat bots 20699 | -4/Factory | Entered Upper Caves 20699 | -4/Upper Caves | Accompanied by 4 allies 20700 | -4/Upper Caves | Identified exit to Upper Caves 20739 | -4/Upper Caves | Learned 8 Research zone layouts 20927 | -4/Upper Caves | Reached level 27 20962 | -4/Upper Caves | Destroyed 13 combat bots 21234 | -4/Upper Caves | Entered another Upper Caves area 21234 | -4/Upper Caves | Accompanied by 5 allies 21247 | -4/Upper Caves | Discovered exit to Research (range 8) 21306 | -4/Upper Caves | Attracted the attention of an 0b10 outpost 21328 | -4/Upper Caves | Learned Research emergency access door positions 21340 | -4/Upper Caves | Destroyed 9 combat bots 21524 | -4/Upper Caves | Spotted B-86 Titan 21573 | -4/Upper Caves | Destroyed B-86 Titan 21650 | -4/Upper Caves | Learned Research emergency access door positions 21650 | -4/Upper Caves | Discovered new exit (range 15) 21655 | -4/Upper Caves | Identified exit to Warlord 21953 | -4/Upper Caves | Entered Warlord 21953 | -4/Warlord | Accompanied by 7 allies 21965 | -4/Warlord | System corruption cleaned by Quarantine Array 21967 | -4/Warlord | Attacked by Warlord forces 21991 | -4/Warlord | Discovered new exit (range 14) 21995 | -4/Warlord | Core integrity fell below 50% 21999 | -4/Warlord | Warlord's base attacked by MAIN.C 22196 | -4/Warlord | Spotted 17-C53(B) 22227 | -4/Warlord | Core integrity fell below 20% 22265 | -4/Warlord | Destroyed 17-C53(B) 22333 | -4/Warlord | Destroyed MK-TB7(g) 22349 | -4/Warlord | Warlord forces counterattacked 22405 | -4/Warlord | Spotted 9Q-FW8(g) 22421 | -4/Warlord | Destroyed 17 combat bots 22527 | -4/Warlord | Destroyed Striker 22672 | -4/Warlord | Spotted Executioner 22674 | -4/Warlord | Warlord base infiltrated, sounded retreat 22674 | -4/Warlord | Destroyed Executioner 22698 | -4/Warlord | Spotted Striker 22700 | -4/Warlord | Reached level 28 22700 | -4/Warlord | Destroyed Striker 22717 | -4/Warlord | Spotted Executioner 22718 | -4/Warlord | Destroyed Executioner 22732 | -4/Warlord | Spotted Executioner 22745 | -4/Warlord | Destroyed Executioner 22773 | -4/Warlord | Found Prototype Processor 22773 | -4/Warlord | Identified Exp. Targeting Computer 22779 | -4/Warlord | Destroyed 16 combat bots 22779 | -4/Warlord | Spotted Striker 22779 | -4/Warlord | Spotted Executioner 22793 | -4/Warlord | Destroyed Executioner 22800 | -4/Warlord | Destroyed Striker 22828 | -4/Warlord | Destroyed 10 combat bots 22849 | -4/Warlord | Destroyed Striker 22854 | -4/Warlord | Spotted Striker 22865 | -4/Warlord | Destroyed Striker 22867 | -4/Warlord | Spotted Striker 22874 | -4/Warlord | Destroyed Striker 22904 | -4/Warlord | Spotted Executioner 22905 | -4/Warlord | Destroyed Executioner 22946 | -4/Warlord | Destroyed 21 combat bots 22955 | -4/Warlord | Spotted Striker 22959 | -4/Warlord | Destroyed Striker 22963 | -4/Warlord | Destroyed Executioner 22993 | -4/Warlord | Destroyed Executioner 23000 | -4/Warlord | Spotted Striker 23002 | -4/Warlord | Destroyed Striker 23037 | -4/Warlord | Spotted Executioner 23038 | -4/Warlord | Spotted Executioner 23038 | -4/Warlord | Destroyed Executioner 23039 | -4/Warlord | Spotted Executioner 23053 | -4/Warlord | Destroyed Executioner 23057 | -4/Warlord | Destroyed Executioner 23093 | -4/Warlord | Spotted Striker 23102 | -4/Warlord | Destroyed Striker 23119 | -4/Warlord | Spotted Striker 23119 | -4/Warlord | Reached level 29 23136 | -4/Warlord | Spotted Striker 23144 | -4/Warlord | Destroyed Striker 23154 | -4/Warlord | Destroyed Striker 23207 | -4/Warlord | Spotted Executioner 23227 | -4/Warlord | Destroyed Executioner 23256 | -4/Warlord | Upgraded with Utility slot (x1) 23257 | -4/Warlord | Found Exp. Core Analyzer 23267 | -4/Warlord | Spotted Striker 23286 | -4/Warlord | Destroyed Striker 23320 | -4/Warlord | Destroyed Executioner 23332 | -4/Warlord | Spotted Executioner 23395 | -4/Warlord | Destroyed 82 combat bots 23396 | -4/Warlord | Destroyed Executioner 23410 | -4/Warlord | Spotted Striker 23460 | -4/Warlord | Destroyed Striker 23535 | -4/Warlord | Destroyed Executioner 23562 | -4/Warlord | Spotted Striker 23593 | -4/Warlord | Destroyed Striker 23622 | -4/Warlord | Spotted Executioner 23622 | -4/Warlord | Spotted Executioner 23631 | -4/Warlord | Destroyed Executioner 23631 | -4/Warlord | Destroyed Executioner 23661 | -4/Warlord | Destroyed 14 combat bots 23696 | -4/Warlord | Destroyed Striker 23835 | -4/Warlord | Destroyed Executioner 23858 | -4/Warlord | Found Prototype Device 23858 | -4/Warlord | Identified Adv. Kinecellerator 24032 | -4/Warlord | Spotted B-86 Titan 24032 | -4/Warlord | Spotted B-90 Cyclops 24108 | -4/Warlord | Destroyed B-90 Cyclops 24114 | -4/Warlord | Destroyed B-86 Titan 24151 | -4/Warlord | Spotted Striker 24164 | -4/Warlord | Destroyed Striker 24192 | -4/Warlord | Spotted Striker 24194 | -4/Warlord | Destroyed Striker 24215 | -4/Warlord | Destroyed 16 combat bots 24314 | -4/Warlord | Found Prototype Device 24314 | -4/Warlord | Identified Exp. Focal Shield 24318 | -4/Warlord | Found Prototype Reactor 24318 | -4/Warlord | Identified Vortex Chain Reactor 24354 | -4/Warlord | Destroyed Striker 24479 | -4/Warlord | Spotted B-90 Cyclops 24518 | -4/Warlord | Destroyed 9 combat bots 24520 | -4/Warlord | Destroyed Executioner 24555 | -4/Warlord | Destroyed B-90 Cyclops 24605 | -4/Warlord | Build established: Scavenger-Sprinter 24688 | -4/Warlord | Found Prototype Processor 24688 | -4/Warlord | Identified Exp. Armor Integrity Analyzer 24829 | -4/Warlord | Identified exit to Proximity Caves 24889 | -4/Warlord | Entered Proximity Caves 24889 | -3/Proximity Caves | Accompanied by 5 allies 24891 | -3/Proximity Caves | Reached level 30 24999 | -3/Proximity Caves | Attracted the attention of an 0b10 checkpoint 25052 | -3/Proximity Caves | Destroyed 10 combat bots 25238 | -3/Proximity Caves | Discovered exit to Research (range 10) 25301 | -3/Proximity Caves | Entered Research 25301 | -3/Research | Accompanied by 5 allies 25302 | -3/Research | Identified exit to Armory 25306 | -3/Research | Loaded intel: 23 terminal locations 25307 | -3/Research | Loaded intel: 4 garrison access locations 25490 | -3/Research | Identified exit to Testing 25539 | -3/Research | Found Prototype Processor 25539 | -3/Research | Identified Exp. Target Analyzer 25626 | -3/Research | Entered Testing 25645 | -3/Testing | Found Prototype Energy Gun 25645 | -3/Testing | Identified Tachyon Dispersion Ray 25675 | -3/Testing | Found Prototype Energy Cannon 25675 | -3/Testing | Identified Null Cannon 25744 | -3/Testing | Scanned by Researcher 25829 | -3/Testing | Spotted PG-PRRPV46RDZ 25892 | -3/Testing | Discovered new exit (range 16) 25905 | -3/Testing | Identified exit to Research 25950 | -3/Testing | Found Prototype Energy Gun 25950 | -3/Testing | Identified Hyp. EM Gauss Rifle 25974 | -3/Testing | Spotted Striker 26191 | -3/Testing | Destroyed PG-PRRPV46RDZ 26294 | -3/Testing | Destroyed 7 combat bots 26306 | -3/Testing | Entered Research 26308 | -2/Research | Reached level 31 26324 | -2/Research | Identified exit to Quarantine 26491 | -2/Research | Entered Quarantine 26493 | -2/Quarantine | Reached level 32 26496 | -2/Quarantine | Upgraded with Weapon slot (x1) 26497 | -2/Quarantine | Found Alien Artifact 26657 | -2/Quarantine | Discovered new exit (range 15) 26774 | -2/Quarantine | First assault squad dispatched 26809 | -2/Quarantine | Identified exit to Access 26931 | -2/Quarantine | Spotted Fortress 26955 | -2/Quarantine | Discovered new exit (range 5) 26956 | -2/Quarantine | Identified exit to Section 7 26957 | -2/Quarantine | Entered Section 7 26960 | -2/Section 7 | Spotted S7 Guard 26988 | -2/Section 7 | Found Alien Artifact 26988 | -2/Section 7 | Identified Navigation Efficiency Matrix 26988 | -2/Section 7 | Installed Navigation Efficiency Matrix, process failed with unexpected side effects 27022 | -2/Section 7 | Destroyed S7 Guard 27027 | -2/Section 7 | Found Prototype Protection 27027 | -2/Section 7 | Identified Hvy. Regenerative Plating 27038 | -2/Section 7 | Discovered exit to Access (range 9) 27074 | -2/Section 7 | Scanned by Researcher 27087 | -2/Section 7 | Identified Subatomic Replicator 27131 | -2/Section 7 | Found Alien Artifact 27131 | -2/Section 7 | Identified Integrated Mediator 27131 | -2/Section 7 | Installed Integrated Mediator, increased core attachment efficiency 27244 | -2/Section 7 | Spotted B-90 Cyclops 27267 | -2/Section 7 | Spotted S7 Guard 27268 | -2/Section 7 | Found Alien Artifact 27268 | -2/Section 7 | Identified Core Regenerator 27268 | -2/Section 7 | Used Core Regenerator, restored core integrity (+0) 27307 | -2/Section 7 | Destroyed S7 Guard 27349 | -2/Section 7 | Found Integrated Dissipator 27349 | -2/Section 7 | Installed Integrated Dissipator, increased core heat dissipation (+20) 27411 | -2/Section 7 | Reached level 33 27418 | -2/Section 7 | Found Alien Artifact 27418 | -2/Section 7 | Identified Spacefold Activator 27488 | -2/Section 7 | First assault squad dispatched 27497 | -2/Section 7 | Intercept squad dispatched 27508 | -2/Section 7 | Spotted Tracker 27509 | -2/Section 7 | Spotted Tracker 27545 | -2/Section 7 | Destroyed Tracker 27558 | -2/Section 7 | Core integrity fell below 50% 27570 | -2/Section 7 | Destroyed Tracker 27588 | -2/Section 7 | Spotted Combat Programmer 27626 | -2/Section 7 | System corruption reached 10% 27634 | -2/Section 7 | Destroyed Combat Programmer 27743 | -2/Section 7 | Spotted B-99 Colossus 27743 | -2/Section 7 | Spotted Alpha 7 27745 | -2/Section 7 | Spotted Combat Programmer 27772 | -2/Section 7 | Found Alien Artifact 27772 | -2/Section 7 | Identified LRC Insulator 27772 | -2/Section 7 | Installed LRC Insulator, gained EM resistance (25) 27776 | -2/Section 7 | Found LRC Insulator 27776 | -2/Section 7 | Installed LRC Insulator, gained EM resistance (25) 27782 | -2/Section 7 | Found Alien Artifact 27782 | -2/Section 7 | Identified LRC Armor 27782 | -2/Section 7 | Installed LRC Armor, increased core integrity (+250) 27804 | -2/Section 7 | Found Integrated Dissipator 27804 | -2/Section 7 | Installed Integrated Dissipator, increased core heat dissipation (+20) 27806 | -2/Section 7 | Found Integrated Dissipator 27806 | -2/Section 7 | Installed Integrated Dissipator, increased core heat dissipation (+20) 27946 | -2/Section 7 | Used Subatomic Replicator to replicate Tachyon Dispersion Ray 28085 | -2/Section 7 | Intercept squad dispatched 28179 | -2/Section 7 | Spotted Tracker 28183 | -2/Section 7 | Spotted Tracker 28187 | -2/Section 7 | Rewired Tracker 28193 | -2/Section 7 | Rewired Tracker 28318 | -2/Section 7 | Rewired B-99 Colossus 28606 | -2/Section 7 | Lost 3 allies 28700 | -2/Section 7 | Combat Programmer assimilated allied Terminator 9b 28716 | -2/Section 7 | Destroyed Combat Programmer 28824 | -2/Section 7 | Intercept squad dispatched 28828 | -2/Section 7 | Destroyed 7 combat bots 29130 | -2/Section 7 | Spotted Tracker 29154 | -2/Section 7 | Destroyed Tracker 29230 | -2/Section 7 | Entered Access 29232 | -1/Access | Reached level 34 29239 | -1/Access | Identified exit to Command 29263 | -1/Access | Crushed by falling debris 29314 | -1/Access | Garrison activated, responded to threat 29493 | -1/Access | Reached level 35 29509 | -1/Access | First assault squad dispatched 29518 | -1/Access | Entered Command 29586 | -1/Command | Spotted Alpha 7 29586 | -1/Command | Spotted Alpha 7 29586 | -1/Command | Spotted Striker 29586 | -1/Command | Spotted Striker 29586 | -1/Command | Spotted Executioner 29586 | -1/Command | Spotted Executioner 29586 | -1/Command | Spotted Executioner 29586 | -1/Command | Spotted Executioner 29587 | -1/Command | Spotted B-99 Colossus 29588 | -1/Command | Spotted B-99 Colossus 29601 | -1/Command | Rewired Striker 29818 | -1/Command | First assault squad dispatched 29980 | -1/Command | Disengaged cave seal 30218 | -1/Command | Destroyed 11 combat bots 30293 | -1/Command | Lost 5 allies 30483 | -1/Command | Spotted B-99 Colossus 30569 | -1/Command | Rewired B-99 Colossus 30584 | -1/Command | Phase Generator disabled 31156 | -1/Command | Reached level 36 31511 | -1/Command | Disengaged cave seal 32028 | -1/Command | Build established: Commander-Sprinter 32498 | -1/Command | Destroyed 10 combat bots 32520 | -1/Command | Build established: Scavenger-Sprinter 32810 | -1/Command | Destroyed Alpha 7 33218 | -1/Command | Spotted M Guard 33219 | -1/Command | Spotted Combat Programmer 33227 | -1/Command | Spotted Combat Programmer 33246 | -1/Command | Destroyed Combat Programmer 33259 | -1/Command | Destroyed Combat Programmer 33563 | -1/Command | Destroyed M Guard 33607 | -1/Command | Spotted M Guard 33625 | -1/Command | Destroyed M Guard 33625 | -1/Command | All MAIN.C guards destroyed 33768 | -1/Command | Found AEGIS Remote Shield 33896 | -1/Command | Rewired Striker 34024 | -1/Command | Destroyed Alpha 7 34207 | -1/Command | Rewired Executioner 34412 | -1/Command | Rewired Executioner 34609 | -1/Command | Rewired Executioner 34837 | -1/Command | Rewired B-99 Colossus 34916 | -1/Command | Rewired B-99 Colossus 35124 | -1/Command | Build established: Commander-Sprinter 35452 | -1/Command | Upgraded with Utility slot (x1) 35456 | -1/Command | Found Exp. Core Analyzer 35758 | -1/Command | Destroyed 14 combat bots 35782 | -1/Command | Build established: Commander-Gunner 35811 | -1/Command | Destroyed 7 combat bots 36023 | -1/Command | Core integrity fell below 50% 36985 | -1/Command | Reached level 37 40306 | -1/Command | Found Prototype Launcher 40306 | -1/Command | Identified Hellfire Missile Launcher 40690 | -1/Command | Destroyed 14 combat bots 41069 | -1/Command | Destroyed 7 combat bots 41378 | -1/Command | Murdered 4 allies 41625 | -1/Command | Destroyed 7 combat bots 42302 | -1/Command | High security lockdown imminent 42361 | -1/Command | Found Thermal Barrier 42382 | -1/Command | High security lockdown engaged 42841 | -1/Command | Reached level 38 42887 | -1/Command | Destroyed 9 combat bots 44189 | -1/Command | Destroyed 13 combat bots 44285 | -1/Command | Destroyed 12 combat bots 45758 | -1/Command | Destroyed 9 combat bots 46261 | -1/Command | Lost 3 allies 47026 | -1/Command | Crushed by falling debris 48078 | -1/Command | Destroyed 10 combat bots 51672 | -1/Command | Met MAIN.C 51952 | -1/Command | Reached level 39 51952 | -1/Command | Allies destroyed MAIN.C Shell 51952 | -1/Command | MAIN.C activated Command garrisons 51992 | -1/Command | Allies destroyed MAIN.C 51994 | -1/Command | Discovered new exit (range 85) 51994 | -1/Command | Discovered new exit (range 47) 51994 | -1/Command | Extracted map data and part IDs from MAIN.C's data core 52016 | -1/Command | Lost 14 allies 52027 | -1/Command | Found Exp. Powered Armor 52123 | -1/Command | Spotted B-99 Colossus 52127 | -1/Command | Lost 3 allies 52131 | -1/Command | Rewired B-99 Colossus 52282 | -1/Command | 0b10 Conduit disabled 52734 | -1/Command | Identified exit to Surface 52940 | *** | Establishing 0b11! Last Messages --------------- 52917_ Field strength at 27. 52918_ Field strength at 20. 52919_ Field strength at 13. 52920_ Field strength at 6. 52921_ Stasis field depleted. 52927_ *O'Chunks triggered Stasis Trap. 52927_ A bubble of rippling energy engulfs the area. 52927_ Field strength at 70. 52929_ Field strength at 40. 52930_ Field strength at 10. 52931_ *2nd Charm triggered Stasis Trap. 52931_ A bubble of rippling energy engulfs the area. 52931_ Field strength at 77. 52931_ Stasis field depleted. 52932_ Field strength at 54. 52933_ Field strength at 31. 52934_ Field strength at 8. 52935_ Stasis field depleted. Map ----- +----------------------------------------------------+ | #?# # ""#??????????????????????????? | | ######""# "#??????????????????????????? | | " " " ""#??????????????????????????? | | ### " T#??????????????????????????? | | ### " ""#??????????????????????????? | | ##" !" #??????????????????????????? | | #"# %* ""#??????????????????????????? | | [ =" ###??????????????????????????? | | *[ " #????????????????????????????? | | = # #????????????????????????????? | | # #????????????????????????????? | | ###"######""#????????????????????????????? | | ## "##?# #???# ##???????????????????????????? | | ## "#??# ##???## #???????????????????????????? | | #" "#??# #?????# #???????????????????????????? | | ## ##??# #?????# #???????????????????????????? | | "" #???# #?????# #???????????????????????????? | | "" #???# #?????# #??????????????????????????? | | ## #???# #????################????????????????? | | # #???# #????##;#############????????????????? | | ## ############# bx ##????????????????? | | #" # ########### gg xgbgggg##????????????????? | | ## ##""" # # # #b gbxhih g b##????????????????? | | ## *#[#^ ^^^ ghMhggbbm ##????????????????? | | [|%=! ^ gib hhbgxg ##????????????????? | | !% * % gggbh@lgghh##????????????????? | | = =!"[ [ ! gb bghigbggoY##????????????????? | | %= % ! EbK ggggbg##????????????????? | | * ####"" = bmbhgBBhgxhg##????????????????? | | # #??##""" ;!;*% ; ihgBBhggli##????????????????? | | # #???###"";;;;;;; b BBBBBBE##????????????????? | | # #????########### BBBBBB ##????????????????? | | # #??????# #????################????????????????? | | # #??????# #????################????????????????? | | #=[#??????# #????????????????????????????????????? | | #!!#??????# #????????????????????????????????????? | | =!%#??????# #????????????????????????????????????? | | *!!#??????# #????????????????????????????????????? | | #[ ##??####"#???######???????????????????????????? | | #%[!#### ##### #???????????????????????????? | | *%%==! "" #???????????????????????????? | | *![* [ T #???????????????????????????? | | #!*[#+## ##### !#???????????????????????????? | | ##= ##+#"#####"#######????????????????????????? | | ## " #????????????????????????? | | ## # #????????????????????????? | | "#"] + ! #????????????????????????? | | "#" # #????????????????????????? | | "## # #????????????????????????? | | T## # #????????????????????????? | +----------------------------------------------------+ Best States ------------- Heat Dissipation 153 Energy Generation 69 Energy Capacity 770 Matter Stores 300 Matter Capacity 300 Sight Range 16 Robot Scan Range 24 Terrain Scan Range 16 Terrain Scan Density 410 Additional Mass Support 12 EM Shielding 3 Armor Coverage 900 Resistance: KI 50 Resistance: TH 70 Resistance: EX 100 Resistance: EM 25 Resistance: I 20 Resistance: S 20 Resistance: P 20 Propulsion Shielding 33 Weapon Shielding 66 Weapon Cycling 25 Evasion (%) 72 Target Analysis 8 Core Analysis 12 Armor Integrity Analysis 50 Recoil Reduction 3 Salvage Targeting 4 Offensive Hacking 40 Defensive Hacking 10 Authchip Count 1 Item Schematics ----------------- Assault Drone Bay | -5/Zhirov | Free Exp. Heat Sink | -5/Zhirov | Free Exp. Optical Array | -5/Zhirov | Free Imp. Arc Thrower | -5/Zhirov | Free Hvy. Gatling Laser | -3/Testing | Archive Coolant Network | -3/Testing | Archive Exp. Targeting Computer | -3/Testing | Archive Exp. Thermal Shield | -2/Section 7 | Archive Adv. Matter Compressor | -2/Section 7 | Archive Hvy. Neutron Cannon | -2/Section 7 | Archive Exp. ECM Suite | -2/Section 7 | Archive Com. Tesla Bomb Launcher | -2/Section 7 | Archive Adv. Thermal Defense Suite | -2/Section 7 | Archive Exp. Energy Well | -2/Section 7 | Archive Adv. Variable Charge Gun | -2/Section 7 | Archive Vibroblade | -2/Section 7 | Archive Graviton Cannon | -2/Section 7 | Archive Hdn. Centrium Leg | -2/Section 7 | Archive Com. Linear Accelerator | -2/Section 7 | Archive Com. Mass Driver | -2/Section 7 | Archive Enh. Force Rifle | -2/Section 7 | Archive Plasma Lance | -2/Section 7 | Archive Cld. Phase Cannon | -2/Section 7 | Archive Adv. Plasma Rifle | -2/Section 7 | Archive Centrium Medium Armor Plating | -2/Section 7 | Archive Prc. Matter Filter | -2/Section 7 | Archive Robot Schematics ------------------ A-02 Transporter | -8/Materials | Hacked K-01 Serf | -7/Recycling | Hacked P-70 Sage | -5/Factory | Hacked L-61 Swordsman | -4/Factory | Hacked T-07 Excavator | -3/Testing | Archive A-27 Freighter | -3/Testing | Archive R-10 Processor | -3/Testing | Archive X-77 Beamer | -3/Testing | Archive C-55 Analyst | -3/Testing | Hacked B-74 Champion | -3/Testing | Hacked P-80 Master | -2/Quarantine | Hacked A-15 Conveyor | -2/Section 7 | Archive X-87 Electro | -2/Section 7 | Archive X-82 Rainmaker | -2/Section 7 | Archive Y-72 Warden | -2/Section 7 | Archive E-15 Imp | -2/Section 7 | Archive S-43 Plague | -2/Section 7 | Archive G-73 Enforcer | -2/Section 7 | Archive C-57 Dissector | -2/Section 7 | Archive O-32 Director | -2/Section 7 | Archive Fabricated ------------ A-02 Transporter | x1 | -7/Factory P-70 Sage | x2 | -5/Factory | Authchip Alien Tech Used ----------------- Integrated Dissipator Navigation Efficiency Matrix Integrated Mediator Core Regenerator Spacefold Activator LRC Insulator LRC Armor Subatomic Replicator Achievements -------------- None Challenges ------------ None RPGLIKE | -11 -10 -10 -9 -9 -9 -8 -8 -8 -8 -8 -8 -8 -8 -8 -7 -7 -7 -7 -5 -5 -5 -5 -4 -4 -4 -4 -4 -3 -3 -3 -2 -2 -2 -1 -1 --------- Run | Yrd Mat Min Mat Min Exi Min Mat Gar Mat Gar Mat Gar Mat Gar Fac Sto Rec Scr Fac Upp Upp Zhi Pro Fac Upp Upp War Pro Res Tes Res Qua Sec Acc Com Levels Raised 38 | . 3 1 5 . . 1 2 1 . 1 . 1 . . 1 . 1 . 3 1 1 . 2 1 1 . 2 1 . . 1 1 1 2 4 XP Earned 61417 | 4000 5646 1226 6717 587 117 819 3319 1512 536 946 358 781 137 354 971 1213 448 153 5284 979 1169 152 2718 2350 667 363 3751 426 389 753 1163 937 2430 1646 6400 XP Spent 55975 | 2000 5450 2500 4550 800 2000 . 4700 . 1100 . . . . 2600 600 . 2900 . 3010 3200 . . . 5400 700 . 4465 . 1500 . 1100 1100 2200 . 4100 Upgrades 83 | 4 22 2 4 1 1 . 11 . 2 . . . . 1 3 . 1 . 10 1 . . . 3 1 . 8 . 3 . 1 1 2 . 1 Power Slot 2 | 1 . . . . . . . . . . . . . . . . . . . . . . . 1 . . . . . . . . . . . Propulsion Slot 3 | 1 1 . . . . . . . . . . . . . . . . . . . . . . 1 . . . . . . . . . . . Utility Slot 13 | 1 1 2 1 . 1 . 1 . . . . . . 1 . . 1 . . 1 . . . 1 . . 1 . . . . . . . 1 Weapon Slot 3 | 1 . . . 1 . . . . . . . . . . . . . . . . . . . . . . . . . . . 1 . . . Core Integrity 11 | . . . . . . . . . . . . . . . . . . . 4 . . . . . . . 7 . . . . . . . . Heat Dissipation 8 | . 8 . . . . . . . . . . . . . . . . . . . . . . . . . . . . . . . . . . Mass Support 3 | . 1 . 1 . . . . . . . . . . . . . . . . . . . . . . . . . . . 1 . . . . Inventory Capacity 6 | . 3 . 2 . . . . . . . . . . . . . . . 1 . . . . . . . . . . . . . . . . Sensor Range 12 | . . . . . . . 5 . . . . . . . 3 . . . 4 . . . . . . . . . . . . . . . . Terrain Scan Density 4 | . 4 . . . . . . . . . . . . . . . . . . . . . . . . . . . . . . . . . . Ranged Accuracy 4 | . 1 . . . . . . . 2 . . . . . . . . . . . . . . . 1 . . . . . . . . . . Hack Attack % 6 | . . . . . . . 3 . . . . . . . . . . . . . . . . . . . . . 1 . . . 2 . . Hack Defense % 2 | . . . . . . . 2 . . . . . . . . . . . . . . . . . . . . . . . . . . . . KI Resistance % 2 | . 1 . . . . . . . . . . . . . . . . . . . . . . . . . . . 1 . . . . . . TH Resistance % 2 | . 1 . . . . . . . . . . . . . . . . . . . . . . . . . . . 1 . . . . . . EX Resistance % 2 | . 1 . . . . . . . . . . . . . . . . . 1 . . . . . . . . . . . . . . . . Protomatter Created 26784 | . 527 68 477 39 96 111 476 273 248 340 263 645 78 218 146 641 69 1710 306 458 267 . 749 886 483 478 5896 454 159 453 67 72 1200 192 8239 Integrity Restored 34208 | . 505 103 740 86 135 295 537 113 132 183 87 350 4 224 374 730 111 1177 1148 766 276 . 379 319 180 146 3387 1144 . 271 . 211 3871 369 15855 Core 22888 | . 340 62 531 48 135 295 205 62 75 90 45 205 4 105 201 206 48 569 963 106 139 . 184 186 115 79 3387 131 . 144 . 54 2735 369 11070 Parts 11320 | . 165 41 209 38 . . 332 51 57 93 42 145 . 119 173 524 63 608 185 660 137 . 195 133 65 67 . 1013 . 127 . 157 1136 . 4785 Protomatter Decayed 12867 | . 282 35 190 77 . 12 274 180 160 233 180 472 76 166 19 349 30 1342 164 175 136 . 487 768 353 427 2299 1 84 238 67 . 161 68 3362 Game ------ Seed MasterVoltaicCannon Manual? 0 Play Time 14:17:13 Cumulative 272.2 hours Start 2025.03.18 @ 08:23:08 End 2025.03.20 @ 18:22:14 Sessions 13 Manual Loads 0 Difficulty Adventurer Special Mode Winter2019/RPGLIKE Game No. 110 Rogue 0 Adventurer 110 Explorer 0 Win Type 1 Total 11 Types 2/2/3/2/1/0/0/0/1 Lore% 81 Gallery% 76 Achievement% 78 Wizard Run 0 Options --------- Layout 2 ASCII 0 Keyboard 0 Movement Numpad Keybinds 0 Fullscreen 2 Font 24/Smallcaps Map View 50x44 Zoom Use 0% Tactical HUD 1 Map Filters NONE Filters NONE Steam 1 RUN: 2f648ade-ada2-46cb-bb80-9d678a642f7b